{"text_format":"1","workbook":"xlsx","n_sheets":11,"sheets":["Home","Forms","HomeVI","Overview","Course Details","LTPivots","DataBase","Provider Table","UserFormHelp","DepContacts","Programs"],"not_rendered":{"charts":0,"images":21,"macros":1,"external_links":0,"defined_names":218,"comments":0,"pivot_tables":16},"unopened":[],"bounds":{"document_bytes":16777216,"sheet_cells":100000,"rows_first":2000,"rows_last":500,"rows_between":2000,"halvings":0,"cell_chars":16384,"cell_head_chars":4096},"cells_cut":0,"cells_raw":0,"read":"whole","date_system":"1900"}

{"sheet":"Home","index":0,"n_rows":0,"n_cols":0,"rows_kept":0,"cut":false,"hidden":false,"merged":[]}

{"sheet":"Forms","index":1,"n_rows":35,"n_cols":14,"rows_kept":35,"cut":false,"hidden":true,"merged":[]}
[]
[null,"Learn Local Details",null,null,null,"Learn Local Contacte Contact"]
[null,null,"Name",{"$f":"IF(nName=0,\"\",nName)","v":""},null,null,"Name",{"$f":"IF(nCDName=\"\",\"\",nCDName)","v":""}]
[null,null,"TOID",{"$f":"IF(nTOID=0,\"\",nTOID)","v":""},null,null,"Position/Role",{"$f":"IF(nCDPosition=\"\",\"\",nCDPosition)","v":""}]
[null,null,"ACFE Region",{"$f":"IF(nACFERegion=0,\"\",nACFERegion)","v":""},null,null,"Phone",{"$f":"IF(nCDPhone=\"\",\"\",nCDPhone)","v":""}]
[null,null,"RTO Status",{"$f":"IF(nRTOStatus=0,\"\",nRTOStatus)","v":""},null,null,"Email",{"$f":"IF(nCDEmail=\"\",\"\",nCDEmail)","v":""}]
[]
[]
[]
[null,"Learn Local Details",null,null,null,"Learn Local Contacte Contact"]
[null,null,"Name",{"$f":"D3","v":""},null,null,"Name",{"$f":"H3","v":""}]
[null,null,"TOID",{"$f":"D4","v":""},null,null,"Position/Role",""]
[null,null,"ACFE Region","",null,null,"Phone",""]
[null,null,"RTO Status","",null,null,"Email",""]
[]
[]
[]
[]
[]
[]
[null,null,null,null,null,null,null,null,null,null,{"$f":"IFERROR(\"Department Contacts — \"&DepContacts!G3,\"Select your orgainsation to identify the relevant Department Contacts\")","v":"Select your orgainsation to identify the relevant Department Contacts"}]
[null,null,null,null,null,null,null,null,null,null,{"$f":"IFERROR(DepContacts!G4,\"\")","v":""},{"$f":"IFERROR(DepContacts!H4,\"\")","v":""},{"$f":"IFERROR(DepContacts!I4,\"\")","v":""},{"$f":"IFERROR(DepContacts!J4,\"\")","v":""}]
[null,null,null,null,null,null,null,null,null,null,{"$f":"IFERROR(DepContacts!G5,\"\")","v":""},{"$f":"IFERROR(DepContacts!H5,\"\")","v":""},{"$f":"IFERROR(DepContacts!I5,\"\")","v":""},{"$f":"IFERROR(DepContacts!J5,\"\")","v":""}]
[null,null,null,null,null,null,null,null,null,null,{"$f":"IFERROR(DepContacts!G6,\"\")","v":""},{"$f":"IFERROR(DepContacts!H6,\"\")","v":""},{"$f":"IFERROR(DepContacts!I6,\"\")","v":""},{"$f":"IFERROR(DepContacts!J6,\"\")","v":""}]
[null,null,null,null,null,null,null,null,null,null,{"$f":"IFERROR(DepContacts!G7,\"\")","v":""},{"$f":"IFERROR(DepContacts!H7,\"\")","v":""},{"$f":"IFERROR(DepContacts!I7,\"\")","v":""},{"$f":"IFERROR(DepContacts!J7,\"\")","v":""}]
[null,null,null,null,null,null,null,null,null,null,{"$f":"IFERROR(DepContacts!G8,\"\")","v":""},{"$f":"IFERROR(DepContacts!H8,\"\")","v":""},{"$f":"IFERROR(DepContacts!I8,\"\")","v":""},{"$f":"IFERROR(DepContacts!J8,\"\")","v":""}]
[]
[]
[]
[null,null,null,null,null,null,null,null,null,null,{"$f":"K21","v":"Select your orgainsation to identify the relevant Department Contacts"}]
[null,null,null,null,null,null,null,null,null,null,{"$f":"K22","v":""},"","",""]
[null,null,null,null,null,null,null,null,null,null,"","","",""]
[null,null,null,null,null,null,null,null,null,null,"","","",""]
[null,null,null,null,null,null,null,null,null,null,"","","",""]
[null,null,null,null,null,null,null,null,null,null,"","","",""]

{"sheet":"HomeVI","index":2,"n_rows":0,"n_cols":0,"rows_kept":0,"cut":false,"hidden":true,"merged":[]}

{"sheet":"Overview","index":3,"n_rows":57,"n_cols":12,"rows_kept":57,"cut":false,"hidden":false,"merged":[[0,0,0,10]]}
["This page provides and overview of all courses entered into delivery plan by 'progam category', 'delivery mode', and 'delivery LGA'."]
[{"$f":"\"Summary as at: \"&TEXT(nPDUpdateDate,\"d mmm yy hh:mm AM/pm\")&\" (Click 'Refresh' if you have made more recent changes)\"","v":"Summary as at: 0 Jan 00 12:00 AM (Click 'Refresh' if you have made more recent changes)"}]
["Note: This bage will contain 'blank' fields until course information is entered. These data cannot be edited. "]
[]
[]
[]
[]
[null,null,null,null,null,null,null,null,null,null,null,{"$f":"LEAPError(DataBase!AF16,DataBase!AF14)","v":""}]
[]
[]
[]
[]
[]
[]
[]
[]
[]
[]
[]
[]
[]
[]
[]
[]
[]
[]
[]
[null,null,null,null,{"$f":"LEAPErrorLong(DataBase!AF16, DataBase!AF14)","v":""}]
[]
["Total SCH by program category"]
["Stream","(Multiple Items)",null,"Stream","(Multiple Items)",null,"Stream","(Multiple Items)"]
[]
["Row Labels","Total SCH",null,"Row Labels","Total SCH",null,"Row Labels","Total SCH"]
["Grand Total",null,null,"Grand Total",null,null,"Grand Total"]
[]
[]
[]
[]
[]
[]
[]
["Total SCH by delivery mode"]
["Stream","(Multiple Items)",null,"Stream","(Multiple Items)",null,"Stream","(Multiple Items)",null,"Stream","(blank)"]
[]
["Row Labels","Total SCH",null,"Row Labels","Total SCH",null,"Row Labels","Total SCH",null,"Row Labels","Total SCH"]
["Grand Total",null,null,"Grand Total",null,null,"Grand Total",null,null,"(blank)"]
[null,null,null,null,null,null,null,null,null,"Grand Total"]
[]
[]
[]
[]
["Total SCH by LGA"]
["Stream","(Multiple Items)",null,"Stream","(Multiple Items)",null,"Stream","(Multiple Items)",null,"Stream","(blank)"]
[]
["Row Labels","Total SCH",null,"Row Labels","Total SCH",null,"Row Labels","Total SCH",null,"Row Labels","Total SCH"]
["Grand Total",null,null,"Grand Total",null,null,"Grand Total",null,null,"(blank)"]
[null,null,null,null,null,null,null,null,null,"Grand Total"]

{"sheet":"Course Details","index":4,"n_rows":31,"n_cols":22,"rows_kept":31,"cut":false,"hidden":false,"merged":[[28,7,28,10],[28,0,28,4],[27,5,27,15],[28,16,28,21]]}
["This page provides and overview of all courses entered into delivery plan"]
[{"$f":"\"Summary as at: \"&TEXT(nPDUpdateDate,\"d mmm yy hh:mm AM/pm\")&\" (Click 'Refresh' if you have made more recent changes)\"","v":"Summary as at: 0 Jan 00 12:00 AM (Click 'Refresh' if you have made more recent changes)"}]
["Note: This bage will contain 'blank' fields until course information is entered. These data cannot be edited. "]
[]
[]
[]
[]
[null,null,null,null,null,null,null,null,null,null,null,null,null,null,null,null,null,null,null,{"$f":"LEAPError(DataBase!AF16,DataBase!AF14)","v":""}]
[]
[]
[]
[]
[]
[]
[]
[]
[]
[]
[]
[]
[]
[]
[]
[null,null,null,null,null,null,null,null,null,{"$f":"LEAPErrorLong(DataBase!AF16, DataBase!AF14)","v":""}]
[]
[]
[]
[null,null,null,null,null,"About the Course Delivery"]
["About the Course Focus",null,null,null,null,null,null,"Term(s) of Delivery",null,null,null,null,null,null,null,null,"About the Course Content"]
["Stream","Category","Funding Code","Course Code","Course Name","LGA","Delivery Mode","T1","T2","T3","T4","Course SCH","No Students","Total SCH","Funding","Partnership","New/Old\nCourse","Curriculum Source","Course\nPlan","A-Frame Status","Learning Outcome","Engagement Strategy"]
["(blank)","(blank)","(blank)","(blank)","(blank)","(blank)","(blank)","(blank)","(blank)","(blank)","(blank)","(blank)","(blank)","(blank)","(blank)","(blank)","(blank)","(blank)","(blank)","(blank)","(blank)","(blank)"]

{"sheet":"LTPivots","index":5,"n_rows":4,"n_cols":51,"rows_kept":4,"cut":false,"hidden":true,"merged":[]}
[]
["Stream","(Multiple Items)",null,null,null,null,null,null,null,null,null,null,null,"Stream","(Multiple Items)",null,null,null,null,null,null,null,null,null,null,null,"Stream","(Multiple Items)",null,null,null,null,null,null,null,null,null,null,null,"Stream","(Multiple Items)"]
[]
["Category","LGA","Course Code","Course Name","Term1","Term2","Term3","Term4","Course SCH","No Students","Total SCH","Funding",null,"Category","LGA","Course Code","Course Name","Term1","Term2","Term3","Term4","Course SCH","No Students","Total SCH","Funding",null,"Category","LGA","Course Code","Course Name","Term1","Term2","Term3","Term4","Course SCH","No Students","Total SCH","Funding",null,"Category","LGA","Course Code","Course Name","Term1","Term2","Term3","Term4","Course SCH","No Students","Total SCH","Funding"]

{"sheet":"DataBase","index":6,"n_rows":19,"n_cols":41,"rows_kept":19,"cut":false,"hidden":true,"merged":[]}
[]
["Item","Stream","LGA","Category","Course Code","Course Name","Course SCH","No Students","Total SCH","Funding","Funding Code","Curriculum Source","New/Old Course","Course Plan","A-Frame Status","Engagement Strategy","Learning Outcome","Delivery Mode","Partnership","Term1","Term2","Term3","Term4"]
[]
[]
[]
[]
[]
[]
[]
[]
[]
[null,null,null,null,null,null,null,null,null,null,null,null,null,null,null,null,null,null,null,null,null,null,null,null,null,null,null,null,{"$f":"\"Summary as at: \"&TEXT(nPDUpdateDate,\"d mmm yy hh:mm AM/pm\")&\" (Click View Courses Button Below for more detail)\"","v":"Summary as at: 0 Jan 00 12:00 AM (Click View Courses Button Below for more detail)"},null,null,null,null,null,null,{"$f":"AC12","v":"Summary as at: 0 Jan 00 12:00 AM (Click View Courses Button Below for more detail)"}]
[null,null,null,null,null,null,null,null,null,null,null,null,null,null,null,null,null,null,null,null,null,null,null,null,null,null,null,null,null,"No.\nCourses","Total\nStudents","Total\nSCH","Total\nFunding",null,null,null,"No.\nCourses","Total\nStudents","Total\nSCH","Total\nFunding"]
[null,null,null,null,null,null,null,null,null,null,null,null,null,null,null,null,null,null,null,null,null,null,null,null,null,null,null,null,"Learner Engagement A-Frame Program",{"$f":"COUNTIF(TB_Results[Stream],AC14)","v":0},{"$f":"SUMIF(TB_Results[Stream],AC14,TB_Results[No Students])","v":0},{"$f":"SUMIF(TB_Results[Stream],AC14,TB_Results[Total SCH])","v":0},{"$f":"SUMIF(TB_Results[Stream],AC14,TB_Results[Funding])","v":0},{"$f":"LEAPError(AF16,AF14)","v":""},null,"Learner Engagement A-Frame Program",{"$f":"AD14","v":0},0,0,0,{"$f":"LEAPError(AF16,AF14)","v":""}]
[null,null,null,null,null,null,null,null,null,null,null,null,null,null,null,null,null,null,null,null,null,null,null,null,null,null,null,null,"Digital Skills",{"$f":"COUNTIF(TB_Results[Stream],AC15)","v":0},{"$f":"SUMIF(TB_Results[Stream],AC15,TB_Results[No Students])","v":0},{"$f":"SUMIF(TB_Results[Stream],AC15,TB_Results[Total SCH])","v":0},{"$f":"SUMIF(TB_Results[Stream],AC15,TB_Results[Funding])","v":0},null,null,"Digital Skills",0,0,0,0]
[null,null,null,null,null,null,null,null,null,null,null,null,null,null,null,null,null,null,null,null,null,null,null,null,null,null,null,null,"General Pre-accredited Training",{"$f":"COUNTIF(TB_Results[Stream],AC16)","v":0},{"$f":"SUMIF(TB_Results[Stream],AC16,TB_Results[No Students])","v":0},{"$f":"SUMIF(TB_Results[Stream],AC16,TB_Results[Total SCH])","v":0},{"$f":"SUMIF(TB_Results[Stream],AC16,TB_Results[Funding])","v":0},null,null,"General Pre-accredited Training",0,0,0,0]
[null,null,null,null,null,null,null,null,null,null,null,null,null,null,null,null,null,null,null,null,null,null,null,null,null,null,null,null,"Total",{"$f":"SUM(AD14:AD16)","v":0},0,0,0,null,null,"Total",0,0,0,0]
[]
[null,null,null,null,null,null,null,null,null,null,null,null,null,null,null,null,null,null,null,null,null,null,null,null,null,null,null,null,{"$f":"LEAPErrorLong(AF16, AF14)","v":""},null,null,null,null,null,null,{"$f":"LEAPErrorLong(AF16, AF14)","v":""}]

{"sheet":"Provider Table","index":7,"n_rows":277,"n_cols":8,"rows_kept":277,"cut":false,"hidden":true,"merged":[]}
["Updated: 27 August 2021"]
[]
["TOID","Name","ABNName","DETRegion","ACFERegion","RTOStatus","UniqueID","Short"]
[4603,"Access Australia Group","Access Australia Group Limited","Cross Regional","Loddon Mallee","Yes","001","VIC"]
[6421,"Alamein Neighbourhood & Learning Centre","Alamein Neighbourhood & Learning Centre Inc","North Eastern Victoria","Eastern Metropolitan","No","002","NEV"]
[3732,"Albury Wodonga Community College","Albury Wodonga Community College Limited","North Eastern Victoria","Hume","Yes","003","NEV"]
[20253,"Albury Wodonga Volunteer Resource Bureau","Albury-Wodonga Volunteer Resource Bureau Inc","North Eastern Victoria","Hume","No","004","NEV"]
[3730,"Alexandra Community Hub","Continuing Education and Arts Centre of Alexandra Inc","North Eastern Victoria","Hume","Yes","058","NEV"]
[590,"AMES Australia","AMES Australia","Statewide","Statewide","Yes","005","VIC"]
[6377,"Anglesea Community House","Anglesea Community House Inc","South Western Victoria","Barwon South West","No","006","SWV"]
[6389,"Angliss Neighbourhood House","Angliss Neighbourhood House Inc","North Western Victoria","North West Metropolitan","Yes","007","NWV"]
[29560,"Ararat Neighbourhood House","Ararat Neighbourhood House Inc","South Western Victoria","Grampians","No","008","SWV"]
[20003,"Arrabri Community House","Arrabri Community House Inc","North Eastern Victoria","Eastern Metropolitan","No","009","NEV"]
[20004,"Art Resource Collective","Art Resource Collective Inc","South Eastern Victoria","Gippsland","No","010","SEV"]
[20008,"Aust. Multicultural Community Services","Australian Multicultural Community Services Inc","North Western Victoria","North West Metropolitan","No","012","NWV"]
[20007,"Australian Croatian Community Services","Australian Croatian Community Services Inc","Cross Regional","North West Metropolitan","No","011","VIC"]
[6390,"Australian Romanian Comm Welfare","Australian Romanian Community Welfare, Health and Services Association of Victoria Inc","North Western Victoria","North West Metropolitan","No","013","NWV"]
[22594,"Australian Vietnamese Women's Assoc.","Australian Vietnamese Women's Association Inc","Cross Regional","North West Metropolitan","Yes","014","VIC"]
[20213,"Avenue Neighbourhood House at Eley","Avenue Neighbourhood House At Eley Inc.","North Eastern Victoria","Eastern Metropolitan","Yes","015","NEV"]
[5064,"Bacchus Marsh Community College","Laurels Education and Training Inc.","South Western Victoria","Grampians","Yes","126","SWV"]
[21701,"Balance Training Services","Balance Training Services Pty Ltd","South Western Victoria","Barwon South West","Yes","016","SWV"]
[20012,"Ballan & District Child & Adult Ed. Ctr","Ballan & District Community House and Adult Education Centre Inc","South Western Victoria","Grampians","No","017","SWV"]
[3622,"Ballarat Neighbourhood Centre","Ballarat Neighbourhood Centre Inc","South Western Victoria","Grampians","No","018","SWV"]
[10556,"Banksia Gardens Association","Banksia Gardens Association Incorporated","North Western Victoria","North West Metropolitan","No","019","NWV"]
[3720,"Bass Coast Adult Education Centre","Bass Coast Adult Education Centre Inc","South Eastern Victoria","Gippsland","Yes","020","SEV"]
[21349,"Beaufort Community House & Learning Ctr","Beaufort Community House and Learning Centre Inc","South Western Victoria","Grampians","No","021","SWV"]
[20019,"Belgium Avenue Neighbourhood House","Belgium Avenue Neighbourhood House Inc","North Western Victoria","North West Metropolitan","No","022","NWV"]
[20021,"Bellarine Living & Learning Centre","Bellarine Living and Learning Centre Inc","South Western Victoria","Barwon South West","No","023","SWV"]
[20459,"Bellarine Training & Comm Hub","Bellarine Training and Community Hub Incorporated","South Western Victoria","Barwon South West","Yes","024","SWV"]
[3628,"Belvedere Community Centre","Belvedere Community Centre Inc","South Eastern Victoria","Southern Metropolitan","No","025","SEV"]
[29524,"Bendigo Neighbourhood Hub","Bendigo Neighbourhood Hub Inc.","North Western Victoria","Loddon Mallee","No","026","NWV"]
[21369,"Berry Street Victoria","Berry Street Victoria Incorporated","South Eastern Victoria","Gippsland","Yes","027","SEV"]
[20024,"Beulah Historical, Learning & Prog. Assoc.","Beulah Historical, Learning and Progress Association Inc","South Western Victoria","Grampians","No","028","SWV"]
[20025,"Birallee Park Neighbourhood House","Birallee Park Neighbourhood House Inc","North Eastern Victoria","Hume","No","029","NEV"]
[21250,"Bnym Aboriginal Corporation","Bnym Aboriginal Corporation","South Eastern Victoria","Gippsland","No","030","SEV"]
[21214,"Boort Resource and Info Centre","Boort Resource And Information Centre Inc","North Western Victoria","Loddon Mallee","No","031","NWV"]
[3621,"BRACE Education Training & Employment","BRACE Education Training & Employment Limited","South Eastern Victoria","Southern Metropolitan","Yes","032","SEV"]
[29562,"Brotherhood of St Laurence","Brotherhood of St Laurence","Cross Regional","North West Metropolitan","No","033","VIC"]
[5526,"Brunswick Neighbourhood House Co-Op","Brunswick Neighbourhood House Co-Operative Limited","North Western Victoria","North West Metropolitan","No","034","NWV"]
[29550,"Bubup Wilam Aboriginal Child & Family Ctr","Bubup Wilam For Early Learning Inc","North Western Victoria","North West Metropolitan","No","035","NWV"]
[20037,"Buchan Neighbourhood House","Buchan District Outreach Inc","South Eastern Victoria","Gippsland","No","036","SEV"]
[21228,"Carlton Neighbourhood Learning Centre","Carlton Neighbourhood Learning Centre Inc","Cross Regional","North West Metropolitan","Yes","037","VIC"]
[3671,"Carringbush Adult Education","Carringbush Adult Education Inc","North Western Victoria","North West Metropolitan","Yes","038","NWV"]
[20042,"Castlemaine Community House","Castlemaine Community House Inc","North Western Victoria","Loddon Mallee","No","039","NWV"]
[3683,"Central Highlands Group Training","Central Highlands Group Training Inc","South Western Victoria","Grampians","Yes","040","SWV"]
[20045,"Central Ringwood Community Centre","Central Ringwood Community Centre Inc","North Eastern Victoria","Eastern Metropolitan","No","041","NEV"]
[29543,"Centre for Adult Education","Centre for Adult Education","Statewide","Statewide","Yes","042","VIC"]
[29530,"Centre for Participation","Centre for Participation Inc","South Western Victoria","Grampians","No","043","SWV"]
[3686,"CERES","CERES Inc","North Western Victoria","North West Metropolitan","Yes","044","NWV"]
[6507,"Cheltenham Community Centre","Cheltenham Community Centre Inc.","South Eastern Victoria","Southern Metropolitan","No","045","SEV"]
[3695,"Child & Family Care Network","Child and Family Care Network Inc","Cross Regional","Eastern Metropolitan","Yes","046","VIC"]
[29502,"Rejoice Christian Chinese Communication Centre","Rejoice Chinese Christian Communications Centre Inc.","North Eastern Victoria","Eastern Metropolitan","No","196","NEV"]
[29549,"Christie Centre","Christie Centre Inc","North Western Victoria","Loddon Mallee","No","047","NWV"]
[6542,"Churchill Neighbourhood Centre","Churchill Neighbourhood Centre Inc","South Eastern Victoria","Gippsland","No","048","SEV"]
[4150,"CIRE Services","CIRE Services Incorporated","North Eastern Victoria","Eastern Metropolitan","Yes","049","NEV"]
[6425,"Clota Cottage Neighbourhood House","Clota Cottage Neighbourhood House Inc","North Eastern Victoria","Eastern Metropolitan","No","050","NEV"]
[21163,"Cloverdale Community Centre","Cloverdale Community Centre Inc","South Western Victoria","Barwon South West","No","051","SWV"]
[3708,"Cobram Community House","Cobram Community House Inc","North Eastern Victoria","Hume","Yes","052","NEV"]
[29540,"Cohuna Neighbourhood House","Cohuna Neighbourhood House Incorporated","North Western Victoria","Loddon Mallee","No","053","NWV"]
[3755,"Comm Unity Plus Services","Comm Unity Plus Services Ltd","North Western Victoria","North West Metropolitan","Yes","054","NWV"]
[4181,"Community College Gippsland","Community College Gippsland Limited","South Eastern Victoria","Gippsland","Yes","055","SEV"]
[29517,"Community Hub","Community Hub Inc","South Western Victoria","Barwon South West","No","056","SWV"]
[5076,"Concern Australia Welfare","Concern Australia Welfare Inc","Cross Regional","Southern Metropolitan","Yes","057","VIC"]
[3733,"Coonara Community House","Coonara Community House Inc","North Eastern Victoria","Eastern Metropolitan","Yes","059","NEV"]
[20058,"Corinella & District Community Centre","Corinella & District Community Centre Inc","South Eastern Victoria","Gippsland","No","060","SEV"]
[20059,"Corryong Neighbourhood House","Corryong Neighbourhood House Inc","North Eastern Victoria","Hume","No","061","NEV"]
[3740,"Craigieburn Education & Community Centre","Craigieburn Education and Community Centre Inc","North Western Victoria","North West Metropolitan","Yes","062","NWV"]
[6510,"Cranbourne Community House","Cranbourne Community House Inc","South Eastern Victoria","Southern Metropolitan","No","063","SEV"]
[5551,"Dallas Neighbourhood House","Dallas Neighbourhood House Inc","North Western Victoria","North West Metropolitan","No","064","NWV"]
[20062,"Dandenong Neighbourhood House","Dandenong Neighbourhood House Inc","South Eastern Victoria","Southern Metropolitan","No","065","SEV"]
[3751,"Daylesford Neighbourhood Centre","Daylesford Neighbourhood Centre Inc","South Western Victoria","Grampians","No","066","SWV"]
[3769,"Diamond Valley Learning Centre","Diamond Valley Learning Centre Inc.","North Western Victoria","North West Metropolitan","Yes","067","NWV"]
[20064,"Dingley Village Neighbourhood Centre","Dingley Village Neighbourhood Centre Inc","South Eastern Victoria","Southern Metropolitan","No","068","SEV"]
[3771,"Djerriwarrh Employment & Ed. Services","Djerriwarrh Employment & Education Services Inc","North Western Victoria","North West Metropolitan","Yes","069","NWV"]
[29535,"Donald Learning Group","Donald Learning Group Inc.","North Western Victoria","Loddon Mallee","No","070","NWV"]
[20067,"Doveton Neighbourhood Learning Centre","Doveton Neighbourhood Learning Centre Inc","South Eastern Victoria","Southern Metropolitan","No","071","SEV"]
[3779,"Duke Street Community House Association","Duke Street Community House Association Inc","North Western Victoria","North West Metropolitan","Yes","072","NWV"]
[29514,"East End Community House","East End Community House Inc.","North Western Victoria","Loddon Mallee","No","073","NWV"]
[21215,"Echuca Neighbourhood House","Echuca Neighbourhood House Inc.","North Western Victoria","Loddon Mallee","No","074","NWV"]
[29554,"Elwood-St Kilda Neighbourhood Learning Ctr","Elwood-St Kilda Neighbourhood Learning Centre Inc","South Eastern Victoria","Southern Metropolitan","No","075","SEV"]
[6428,"Emerald Community House","Emerald Community House Inc","South Eastern Victoria","Southern Metropolitan","No","076","SEV"]
[6899,"Encompass Community Services","Encompass Community Services Incorporated","South Western Victoria","Barwon South West","Yes","077","SWV"]
[20070,"Endeavour Hills Neighbourhood Centre","Endeavour Hills Neighbourhood Centre Inc","South Eastern Victoria","Southern Metropolitan","No","078","SEV"]
[29551,"Euroa Health","Euroa Health Inc","North Eastern Victoria","Hume","No","079","NEV"]
[22203,"Farnham Street N/hood Learning Centre","Farnham Street Neighbourhood Learning Centre Inc","North Western Victoria","North West Metropolitan","Yes","080","NWV"]
[3811,"Fitzroy Learning Network","Fitzroy Learning Network Inc","North Western Victoria","North West Metropolitan","Yes","081","NWV"]
[29561,"Footscray Community Arts Centre","Footscray Community Arts Centre Limited","North Western Victoria","North West Metropolitan","No","082","NWV"]
[29555,"Foundation 61","Foundation 61 Inc.","South Western Victoria","Barwon South West","No","083","SWV"]
[29537,"Frankston City Council","Frankston City Council","South Eastern Victoria","Southern Metropolitan","No","084","SEV"]
[22079,"Gateway BEET","Gateway BEET Inc","South Western Victoria","Grampians","No","085","SWV"]
[29512,"Gateway Social Support Options","Gateway Social Support Options Inc.","North Western Victoria","North West Metropolitan","No","086","NWV"]
[5819,"Geelong Ethnic Communities Council","Geelong Ethnic Communities Council Incorporated","South Western Victoria","Barwon South West","Yes","087","SWV"]
[3828,"Gippsland Employment Skills Training","Gippsland Employment Skills Training Inc.","South Eastern Victoria","Gippsland","Yes","088","SEV"]
[6511,"Glen Eira Adult Learning Centre","Glen Eira Adult Learning Centre Inc","South Eastern Victoria","Southern Metropolitan","Yes","089","SEV"]
[20083,"Glen Park Community Centre","Glen Park Community Centre Inc","North Eastern Victoria","Eastern Metropolitan","No","090","NEV"]
[3831,"Glenroy Neighbourhood Learning Centre","Glenroy Neighbourhood Learning Centre Inc","North Western Victoria","North West Metropolitan","Yes","091","NWV"]
[20084,"Godfrey Street Community House","Godfrey Street Community House Inc","South Eastern Victoria","Southern Metropolitan","No","092","SEV"]
[21177,"Goldfields Employment & Learning Centre","Goldfields Employment and Learning Centre Inc","North Western Victoria","Loddon Mallee","No","093","NWV"]
[29542,"Grampians Community Health ","Grampians Community Health ","South Western Victoria","Grampians","No","094","SWV"]
[29553,"Great Ocean Road Health","Great Ocean Road Health","South Western Victoria","Barwon South West","No","095","SWV"]
[20089,"Haddon Community Learning Centre","Haddon Community Learning Centre Inc","South Western Victoria","Grampians","No","096","SWV"]
[20090,"Hallam Community Learning Centre","Hallam Community Learning Centre Inc","South Eastern Victoria","Southern Metropolitan","No","097","SEV"]
[20092,"Hampton Community Centre","Hampton Community Centre Inc","South Eastern Victoria","Southern Metropolitan","No","098","SEV"]
[6512,"Hampton Park Care Group","Hampton Park Care Group Inc","South Eastern Victoria","Southern Metropolitan","No","099","SEV"]
[29556,"Healesville Living & Learning Centre","Healesville Living & Learning Centre Inc","North Eastern Victoria","Eastern Metropolitan","No","100","NEV"]
[20095,"Heyfield Community Resource Centre","Heyfield Community Resource Centre Inc","South Eastern Victoria","Gippsland","No","101","SEV"]
[6407,"Holden Street Neighbourhood House","Holden Street Neighbourhood House Inc","North Western Victoria","North West Metropolitan","No","102","NWV"]
[20098,"Horsham Community House","Horsham Community House Inc","South Western Victoria","Grampians","No","103","SWV"]
[20215,"Hume City Council","Hume City Council","North Western Victoria","North West Metropolitan","No","104","NWV"]
[6406,"Inclusion Melbourne","Inclusion Melbourne Inc","South Eastern Victoria","Southern Metropolitan","Yes","105","SEV"]
[21732,"Inner Melbourne VET Cluster","Inner Melbourne VET Cluster Inc","Cross Regional","Southern Metropolitan","Yes","106","VIC"]
[20104,"Japara Neighbourhood House","Japara Neighbourhood House Inc","North Eastern Victoria","Eastern Metropolitan","No","107","NEV"]
[21800,"Jesuit Social Services","Jesuit Social Services Limited","Cross Regional","North West Metropolitan","Yes","108","VIC"]
[29516,"Jewish Care (Victoria)","Jewish Care (Victoria) Inc.","South Eastern Victoria","Southern Metropolitan","No","109","SEV"]
[20107,"Jika Jika Community Centre","Jika Jika Community Centre Inc","North Western Victoria","North West Metropolitan","No","110","NWV"]
[21014,"JobCo Employment Services","JobCo Employment Services Inc","Cross Regional","North West Metropolitan","Yes","111","VIC"]
[21527,"Kangaroo Flat Community Group","Kangaroo Flat Community Group Inc.","North Western Victoria","Loddon Mallee","No","113","NWV"]
[5553,"Karingal St Laurence","Karingal St Laurence Limited","Cross Regional","Barwon South West","Yes","114","VIC"]
[3888,"Kensington Neighbourhood House","Kensington Neighbourhood House Inc","North Western Victoria","North West Metropolitan","No","115","NWV"]
[29525,"Kerang & District Community Centre","Kerang and District Community Centre Inc.","North Western Victoria","Loddon Mallee","No","116","NWV"]
[29532,"Kerrie Neighbourhood House","Kerrie Neighbourhood House Inc","North Eastern Victoria","Eastern Metropolitan","No","117","NEV"]
[6431,"Kew Neighbourhood Learning Centre","Kew Neighbourhood Learning Centre Inc","North Eastern Victoria","Eastern Metropolitan","No","118","NEV"]
[20115,"King Valley Learning Exchange","King Valley Learning Exchange Inc.","North Eastern Victoria","Hume","No","119","NEV"]
[20116,"Kinglake Ranges Neighbourhood House","Kinglake Ranges Neighbourhood House Inc","North Eastern Victoria","Hume","No","120","NEV"]
[3897,"Kyabram Community & Learning Centre","Kyabram Community and Learning Centre Inc","North Western Victoria","Loddon Mallee","No","121","NWV"]
[6325,"KYM (Victoria)","K.Y.M. (Victoria) Incorporated","North Eastern Victoria","Eastern Metropolitan","Yes","112","NEV"]
[6489,"Kyneton Community & Learning Centre","Kyneton Community & Learning Centre Inc","North Western Victoria","Loddon Mallee","No","122","NWV"]
[29545,"Lalor Living & Learning Centre","Lalor Living and Learning Centre Inc","North Western Victoria","North West Metropolitan","No","123","NWV"]
[29557,"Langwarrin Community Centre","Langwarrin Community Centre Inc","South Eastern Victoria","Southern Metropolitan","Yes","124","SEV"]
[20120,"Lara Community Centre","Lara Community Centre Inc","South Western Victoria","Barwon South West","No","125","SWV"]
[6408,"Laverton Community Integrated Services","Laverton Community Integrated Services Inc","North Western Victoria","North West Metropolitan","Yes","127","NWV"]
[29518,"Leopold Community & Learning Centre","Leopold Community and Learning Centre Inc.","South Western Victoria","Barwon South West","No","128","SWV"]
[29539,"Link Health & Community","Link Health and Community Limited","North Eastern Victoria","Eastern Metropolitan","No","129","NEV"]
[20111,"LINK Neighbourhood House","LINK Neighbourhood House Inc","South Western Victoria","Grampians","No","130","SWV"]
[29515,"Living & Learning at Ajani","Living and Learning at Ajani Inc.","North Eastern Victoria","Eastern Metropolitan","No","131","NEV"]
[3913,"Living Learning Pakenham","Living Learning Pakenham Inc.","South Eastern Victoria","Southern Metropolitan","No","132","SEV"]
[21226,"Loddon Campaspe Multicultural Services","Loddon Campaspe Multicultural Services Inc","North Western Victoria","Loddon Mallee","No","133","NWV"]
[3693,"Longbeach Place","Longbeach Place Inc","South Eastern Victoria","Southern Metropolitan","No","134","SEV"]
[20131,"Lyrebird Community Centre","Lyrebird Community Centre Inc.","South Eastern Victoria","Southern Metropolitan","No","135","SEV"]
[3920,"Macedon Ranges Further Education Centre","Macedon Ranges Further Education Centre Inc.","North Western Victoria","Loddon Mallee","No","137","NWV"]
[3957,"MADEC Australia","MADEC Australia","North Western Victoria","Loddon Mallee","Yes","138","NWV"]
[20132,"Maldon Neighbourhood Centre","Maldon Neighbourhood Centre Inc","North Western Victoria","Loddon Mallee","No","139","NWV"]
[6465,"Mallacoota District Health & Support Ser","Mallacoota District Health & Support Service Inc","South Eastern Victoria","Gippsland","No","140","SEV"]
[20075,"Manna Gum Community House","Manna Gum Community House Inc","South Eastern Victoria","Gippsland","No","141","SEV"]
[3928,"Mansfield Adult Continuing Education","MACE Inc.","North Eastern Victoria","Hume","No","136","NEV"]
[3940,"Meadow Heights Learning Shop","Meadow Heights Learning Shop Inc","North Western Victoria","North West Metropolitan","Yes","142","NWV"]
[40580,"Melbourne City Mission","Melbourne City Mission","South Eastern Victoria","Southern Metropolitan","No","143","SEV"]
[20140,"Melton South Community Centre","Melton South Community Centre Inc","North Western Victoria","North West Metropolitan","No","144","NWV"]
[20141,"Meredith Community Centre","Meredith Community Centre Inc","South Western Victoria","Grampians","No","145","SWV"]
[3952,"Merinda Park Learning & Community Centre","Merinda Park Learning and Community Centre Inc.","South Eastern Victoria","Southern Metropolitan","Yes","146","SEV"]
[29534,"Micare","Micare Ltd","Cross Regional","Southern Metropolitan","No","147","VIC"]
[22596,"Migrant Resource Centre, NW Region","Migrant Resource Centre, North West Region Inc","North Western Victoria","North West Metropolitan","Yes","148","NWV"]
[20167,"MiLife-Victoria","MiLife-Victoria Inc","South Eastern Victoria","Southern Metropolitan","No","149","SEV"]
[29526,"Mill Park Community Services Group","Mill Park Community Services Group Inc","North Western Victoria","North West Metropolitan","No","150","NWV"]
[6543,"Milpara Community House","Milpara Community House Inc","South Eastern Victoria","Gippsland","No","151","SEV"]
[6433,"Mitcham Community House","Mitcham Community House Incorporated","North Eastern Victoria","Eastern Metropolitan","No","152","NEV"]
[20146,"Moe Life-Skills Community Centre","Moe Life-Skills Community Centre Inc\n","South Eastern Victoria","Gippsland","Yes","153","SEV"]
[20147,"Moe Neighbourhood House","Moe Neighbourhood House Inc","South Eastern Victoria","Gippsland","No","154","SEV"]
[20149,"Moongala Women's Collective","Moongala Women's Collective Inc.","South Eastern Victoria","Southern Metropolitan","No","155","SEV"]
[20151,"Mordialloc Neighbourhood House","Mordialloc Neighbourhood House Inc","South Eastern Victoria","Southern Metropolitan","No","156","SEV"]
[20153,"Mount Beauty Neighbourhood Centre","Mount Beauty Neighbourhood Centre Inc.","North Eastern Victoria","Hume","No","157","NEV"]
[3970,"Mount Eliza Neighbourhood House","Mount Eliza Neighbourhood House Inc","South Eastern Victoria","Southern Metropolitan","No","158","SEV"]
[3969,"Mountain District Women's Co-operative","Mountain District Women's Co-operative Limited","North Eastern Victoria","Eastern Metropolitan","Yes","159","NEV"]
[3776,"Murray Adult Community Education","Murray Adult Community Education – Swan Hill Inc","North Western Victoria","Loddon Mallee","Yes","160","NWV"]
[21080,"Murray Human Services","Murray Human Services Inc","North Western Victoria","Loddon Mallee","Yes","161","NWV"]
[29503,"Myrtleford Neighbourhood Centre","Myrtleford Neighbourhood Centre Inc","North Eastern Victoria","Hume","No","162","NEV"]
[20159,"N/Carlton Railway Station N/hood House","North Carlton Railway Station Neighbourhood House Inc.","North Western Victoria","North West Metropolitan","No","168","NWV"]
[3993,"N/Shepparton Community & Learning Centre","North Shepparton Community & Learning Centre Inc","North Eastern Victoria","Hume","Yes","171","NEV"]
[3977,"Narre Community Learning Centre","Foundation Learning Centre Inc","South Eastern Victoria","Southern Metropolitan","Yes","163","SEV"]
[20155,"Ngwala Willumbong","Ngwala Willumbong Aboriginal Corporation","South Eastern Victoria","Southern Metropolitan","No","164","SEV"]
[20982,"Nhill Neighbourhood House Learning Ctr","Nhill Neighbourhood House Learning Centre Inc.","South Western Victoria","Grampians","No","165","SWV"]
[3989,"Nillumbik Shire Council","Nillumbik Shire Council","North Western Victoria","North West Metropolitan","Yes","166","NWV"]
[20156,"Noble Park Community Centre","Noble Park Community Centre Inc.","South Eastern Victoria","Southern Metropolitan","No","167","SEV"]
[6410,"North Melbourne Language & Learning","North Melbourne Language and Learning Inc","North Western Victoria","North West Metropolitan","Yes","169","NWV"]
[6434,"North Ringwood Community House","North Ringwood Community House Incorporated","North Eastern Victoria","Eastern Metropolitan","Yes","170","NEV"]
[6462,"Noweyung","Noweyung Limited","South Eastern Victoria","Gippsland","No","172","SEV"]
[6477,"Numurkah Community Learning Centre","Numurkah Community Learning Centre Inc.","North Eastern Victoria","Hume","Yes","173","NEV"]
[3818,"Olympic Adult Education","Olympic Adult Education Inc.","North Western Victoria","North West Metropolitan","Yes","174","NWV"]
[20162,"Open Door Neighbourhood House","Open Door Neighbourhood House Inc","North Eastern Victoria","Hume","No","175","NEV"]
[20163,"Orana Neighbourhood House","Orana Neighbourhood House Inc.","North Eastern Victoria","Eastern Metropolitan","No","176","NEV"]
[21109,"Orbost Education Centre","Orbost Education Centre Incorporated","South Eastern Victoria","Gippsland","No","177","SEV"]
[6411,"Outlets Co-operative Neighbourhood House","Outlets Co-operative Neighbourhood House Limited","North Western Victoria","North West Metropolitan","No","178","NWV"]
[21606,"Outlook (VIC)","Outlook (Vic.) Inc.","South Eastern Victoria","Southern Metropolitan","No","179","SEV"]
[20164,"Pangerang Community House","Pangerang Community House Inc.","North Eastern Victoria","Hume","No","180","NEV"]
[4008,"Park Orchards Comm House","Park Orchards Community House &  Learning Centre Inc","North Eastern Victoria","Eastern Metropolitan","Yes","181","NEV"]
[20166,"Paynesville Neighbourhood Centre","Paynesville Neighbourhood Centre Inc","South Eastern Victoria","Gippsland","No","182","SEV"]
[4016,"Peninsula Training & Employment Program","Peninsula Training and Employment Program Inc","South Eastern Victoria","Southern Metropolitan","Yes","183","SEV"]
[20170,"Phillip Island Community & Learning Ctr","Phillip Island Community And Learning Centre Inc.","South Eastern Victoria","Gippsland","No","184","SEV"]
[3774,"Pines Learning","Pines Learning Inc","North Eastern Victoria","Eastern Metropolitan","Yes","185","NEV"]
[20173,"Port Fairy Community Group","Port Fairy Community Group Inc","South Western Victoria","Barwon South West","No","186","SWV"]
[20909,"Port Phillip Community Group","Port Phillip Community Group Limited","South Eastern Victoria","Southern Metropolitan","No","187","SEV"]
[4030,"Portland Workskills","Portland Workskills Inc","South Western Victoria","Barwon South West","Yes","188","SWV"]
[6413,"Prahran Community Learning Centre","Prahran Community Learning Centre Inc","South Eastern Victoria","Southern Metropolitan","Yes","189","SEV"]
[20176,"Preston Neighbourhood House","Preston Neighbourhood House Inc","North Western Victoria","North West Metropolitan","No","190","NWV"]
[4036,"Preston/Reservoir Adult Community Ed.","Preston Reservoir Adult Community Education Inc","Cross Regional","North West Metropolitan","Yes","191","VIC"]
[29546,"Pyramid Hill Neighbourhood House","Pyramid Hill Neighbourhood House","North Western Victoria","Loddon Mallee","No","192","NWV"]
[20179,"Quantin Binnah Community Centre","Quantin Binnah Community Centre Inc","North Western Victoria","North West Metropolitan","No","193","NWV"]
[29533,"Quantum Support Services","Quantum Support Services Inc.","South Eastern Victoria","Gippsland","No","194","SEV"]
[21081,"Red Cliffs Community Resource Centre","Red Cliffs Community Resource Centre Inc","North Western Victoria","Loddon Mallee","No","195","NWV"]
[3890,"Resurrection Catholic Church Keysborough","Resurrection Catholic Church Keysborough","South Eastern Victoria","Southern Metropolitan","Yes","197","SEV"]
[20039,"Richmond Community Learning Centre","Richmond Community Learning Centre Inc","North Western Victoria","North West Metropolitan","No","199","NWV"]
[6505,"Robinson Reserve Neighbourhood House","Reynard Street Neighbourhood House Incorporated","North Western Victoria","North West Metropolitan","No","198","NWV"]
[21082,"Robinvale Network House","Robinvale Network House Inc","North Western Victoria","Loddon Mallee","No","200","NWV"]
[29536,"Rosanna Fire Station Community House","Rosanna Fire Station Community House Inc","North Western Victoria","North West Metropolitan","No","201","NWV"]
[20187,"Rosewall Neighbourhood Centre","Rosewall Neighbourhood Centre Inc.","South Western Victoria","Barwon South West","No","202","SWV"]
[29504,"Rowville Neighbourhood Learning Centre","Rowville Neighbourhood Learning Centre Inc","North Eastern Victoria","Eastern Metropolitan","No","203","NEV"]
[4198,"Rural Industries Skill Training Centre","Rural Industries Skill Training Centre Inc","South Western Victoria","Barwon South West","Yes","204","SWV"]
[20189,"Rushworth Community House","Rushworth Community House Inc","North Western Victoria","Loddon Mallee","No","205","NWV"]
[6523,"S/vale Indo-Chinese Mutual Assist. Assoc","Springvale Indo-Chinese Mutual Assistance Association Inc","South Eastern Victoria","Southern Metropolitan","No","220","SEV"]
[20192,"Sale Neighbourhood House","Sale Neighbourhood House Inc","South Eastern Victoria","Gippsland","No","206","SEV"]
[4069,"Sandybeach Community Co-op Society","Sandybeach Community Co-operative Society Limited","South Eastern Victoria","Southern Metropolitan","No","207","SEV"]
[4577,"SCAA Shearer Woolhandler Training","SCAA Shearer Woolhandler Training Inc","South Western Victoria","Barwon South West","Yes","208","SWV"]
[4075,"Selby Community House","Selby Community House Inc","North Eastern Victoria","Eastern Metropolitan","No","209","NEV"]
[29558,"Shepparton Access","Shepparton Access","North Eastern Victoria","Hume","No","210","NEV"]
[6470,"Shepparton ACE Secondary College","Shepparton Adult and Community Education College Inc","North Eastern Victoria","Hume","Yes","211","NEV"]
[20197,"Simpson & District Community Centre","Simpson & District Community Centre Inc","South Western Victoria","Barwon South West","No","212","SWV"]
[20199,"Sorrento Community Centre","Sorrento Community Centre Inc","South Eastern Victoria","Southern Metropolitan","No","213","SEV"]
[20200,"South Shepparton Community Centre","South Shepparton Community Centre Inc","North Eastern Victoria","Hume","No","214","NEV"]
[20645,"Southern Grampians Adult Education","Southern Grampians Adult Education Inc","South Western Victoria","Barwon South West","Yes","215","SWV"]
[29541,"Southern Migrant & Refugee Centre","Southern Migrant and Refugee Centre Inc","South Eastern Victoria","Southern Metropolitan","No","216","SEV"]
[6412,"Southport Community Centre","Southport Community Centre Incorporated","South Eastern Victoria","Southern Metropolitan","No","217","SEV"]
[20201,"Span Community House","Span Community House Inc.","North Western Victoria","North West Metropolitan","No","218","NWV"]
[20924,"Spanish Latin-American Welfare Centre","United-Spanish Latin American Welfare Centre Inc","North Western Victoria","North West Metropolitan","No","242","NWV"]
[20202,"Springdale Neighbourhood Centre","Springdale Neighbourhood Centre Inc","South Western Victoria","Barwon South West","No","219","SWV"]
[29559,"Springvale Learning & Activities Centre","Springvale Learning and Activities Centre Incorporated","South Eastern Victoria","Southern Metropolitan","No","221","SEV"]
[4098,"Springvale Neighbourhood House","Springvale Neighbourhood House Inc","South Eastern Victoria","Southern Metropolitan","Yes","222","SEV"]
[21152,"St. Arnaud Neighbourhood House","St. Arnaud Neighbourhood House Inc","South Western Victoria","Grampians","No","223","SWV"]
[20206,"Stawell Neighbourhood House","Stawell Neighbourhood House Inc","South Western Victoria","Grampians","No","224","SWV"]
[6492,"Sunraysia Mallee Ethnic Comm. Council","Sunraysia Mallee Ethnic Communities Council Inc","North Western Victoria","Loddon Mallee","No","225","NWV"]
[29548,"Sunraysia Regional Consulting","Sunraysia Regional Consulting Limited","North Western Victoria","Loddon Mallee","No","226","NWV"]
[20208,"Sussex Neighbourhood House","Sussex Neighbourhood House Inc","North Western Victoria","North West Metropolitan","No","227","NWV"]
[29527,"Swan Hill Neighbourhood House","Swan Hill Neighbourhood House Inc","North Western Victoria","Loddon Mallee","No","228","NWV"]
[5818,"Task Force Community Agency","Task Force Community Agency Inc","South Eastern Victoria","Southern Metropolitan","Yes","229","SEV"]
[20212,"Tatura Community House","Tatura Community House Inc","North Eastern Victoria","Hume","No","230","NEV"]
[20214,"The Basin Community House","The Basin Community House Inc","North Eastern Victoria","Eastern Metropolitan","No","231","NEV"]
[4172,"The Centre for Continuing Education","The Centre for Continuing Education Inc","North Eastern Victoria","Hume","Yes","232","NEV"]
[20158,"The Centre: Connecting Community in NW-M","The Centre: Connecting Community In North & West Melbourne Inc","North Western Victoria","North West Metropolitan","No","233","NWV"]
[29528,"The Kevin Heinze Garden Centre","The Kevin Heinze Garden Centre Incorporated","North Eastern Victoria","Eastern Metropolitan","No","234","NEV"]
[6378,"The Old Courthouse Committee of Mgt","The Old Courthouse Committee of Management Inc","South Western Victoria","Barwon South West","No","235","SWV"]
[6436,"The Onemda Association","The Onemda Association Inc","North Eastern Victoria","Eastern Metropolitan","No","236","NEV"]
[29523,"The Social Studio","The Social Studio Inc","North Western Victoria","North West Metropolitan","No","237","NWV"]
[6414,"The South Kingsville Community Centre","The South Kingsville Community Centre Inc","North Western Victoria","North West Metropolitan","No","238","NWV"]
[20220,"Tongala Community Activities Centre","Tongala Community Activities Centre Inc","North Western Victoria","Loddon Mallee","No","239","NWV"]
[6545,"Traralgon Neighbourhood Learning House","Traralgon Neighbourhood Learning House Inc.","South Eastern Victoria","Gippsland","No","240","SEV"]
[20222,"Trudewind Road Neighbourhood House","Trudewind Road Neighbourhood House Inc","North Eastern Victoria","Hume","No","241","NEV"]
[20175,"Uniting (Victoria & Tasmania)","Uniting (Victoria and Tasmania) Limited","South Eastern Victoria","Southern Metropolitan","No","243","SEV"]
[4149,"Upper Beaconsfield Community Centre","Upper Beaconsfield Community Centre","South Eastern Victoria","Southern Metropolitan","No","244","SEV"]
[6437,"Vermont South Community House","Vermont South Community House Incorporated","North Eastern Victoria","Eastern Metropolitan","No","245","NEV"]
[22576,"Vic. Aboriginal Community Services Assoc","Victorian Aboriginal Community Services Association Limited","North Western Victoria","North West Metropolitan","Yes","247","NWV"]
[3834,"Vic. Vocational Rehabilitation Assoc","Victorian Vocational Rehabilitation Association","North Western Victoria","North West Metropolitan","Yes","249","NWV"]
[21203,"VICSEG New Futures","VICSEG New Futures","North Western Victoria","North West Metropolitan","Yes","246","NWV"]
[29538,"Victorian Deaf Society","Victorian Deaf Society","North Western Victoria","North West Metropolitan","No","248","NWV"]
[20257,"Waminda","Waminda Inc","North Eastern Victoria","Hume","No","250","NEV"]
[20259,"Warracknabeal Neighbourhood House","Warracknabeal Neighbourhood House and Learning Centre Inc","South Western Victoria","Grampians","No","251","SWV"]
[20260,"Warragul Community House","Warragul Community House Inc","South Eastern Victoria","Gippsland","No","252","SEV"]
[29544,"Warrandyte Neighbourhood House","Warrandyte Neighbourhood House","North Eastern Victoria","Eastern Metropolitan","No","253","NEV"]
[6439,"Waverley Community Learning Centre","Waverley Community Learning Centre Inc","North Eastern Victoria","Eastern Metropolitan","No","254","NEV"]
[6490,"Wedderburn Community House","Wedderburn Community House Inc","North Western Victoria","Loddon Mallee","No","255","NWV"]
[20266,"Wellsprings For Women","Wellsprings For Women Incorporated","South Eastern Victoria","Southern Metropolitan","No","256","SEV"]
[21624,"Wendouree Neighbourhood Centre","Wendouree Neighbourhood Centre Inc","South Western Victoria","Grampians","No","257","SWV"]
[4185,"Westgate Community Initiatives Group","Westgate Community Initiatives Group Inc","North Western Victoria","North West Metropolitan","Yes","258","NWV"]
[29547,"Whittlesea Community Connections","Whittlesea Community Connections Inc","North Western Victoria","North West Metropolitan","No","259","NWV"]
[21644,"Whittlesea Community House","Whittlesea Community House Inc","North Western Victoria","North West Metropolitan","No","260","NWV"]
[4640,"Williamstown Community & Education Ctr","Williamstown Community and Education Centre Inc","North Western Victoria","North West Metropolitan","Yes","261","NWV"]
[6381,"Winchelsea Community House","Winchelsea Community House Incorporated","South Western Victoria","Barwon South West","No","262","SWV"]
[6419,"Wingate Avenue Community Centre","Wingate Avenue Community Centre Inc","North Western Victoria","North West Metropolitan","Yes","263","NWV"]
[29552,"Wonga Park Community Cottage","Wonga Park Community Cottage Inc","North Eastern Victoria","Eastern Metropolitan","No","264","NEV"]
[3652,"Workforce Plus","Workforce Plus Inc.","South Eastern Victoria","Gippsland","Yes","265","SEV"]
[20274,"Wycheproof Community Resource Centre","Wycheproof Community Resource Centre Inc","North Western Victoria","Loddon Mallee","No","266","NWV"]
[4179,"Wyndham Community & Education Centre","Wyndham Community and Education Centre Inc","North Western Victoria","North West Metropolitan","Yes","267","NWV"]
[4207,"Yarraville Community Centre","Yarraville Community Centre Inc","North Western Victoria","North West Metropolitan","Yes","268","NWV"]
[21765,"Yarrawonga Neighbourhood House","Yarrawonga Neighbourhood House Inc.","North Eastern Victoria","Hume","Yes","269","NEV"]
[20278,"Yarrunga Community Centre","Yarrunga Community Centre Inc","North Eastern Victoria","Eastern Metropolitan","No","270","NEV"]
[4208,"Yooralla College","Yooralla","North Western Victoria","North West Metropolitan","No","271","NWV"]
[21619,"Youth Projects","Youth Projects Limited","North Western Victoria","North West Metropolitan","Yes","272","NWV"]
[29505,"YouthNow","YouthNow Inc","North Western Victoria","North West Metropolitan","No","273","NWV"]
[29520,"Zoe Support Australia","Zoe Support Australia","North Western Victoria","Loddon Mallee","No","274","NWV"]

{"sheet":"UserFormHelp","index":8,"n_rows":56,"n_cols":16,"rows_kept":56,"cut":false,"hidden":true,"merged":[]}
["UF01Provider"]
["Name","Text"]
["UF01HelpTxt01","Use this form to enter information about your organisation and delivery plan.","Default",null,null,"Name","Value",null,null,null,null,null,null,null,"Provider"]
["UF01HelpTxt02","Select your organisation from this list, contact the Department if your organisation does not appear (click the ‘Help’ button for contact information).","TOID Dropdown",null,"Contact Details","nCDName",null,"Name",null,null,null,null,null,null,"Name:",{"$f":"IF(nName=0,\"\",nName)","v":""}]
["UF01HelpTxt03","This information is automatically completed from the Department’s records, contact the Department if data need to be updated (click the ‘Help’ button for contact information).","Provider details",null,null,"nCDPosition",null,"Position",null,null,null,null,null,null,"TOID:",{"$f":"IF(nTOID=0,\"\",nTOID)","v":""}]
["UF01HelpTxt04","Enter the name of your preferred contact for queries regarding this Delivery Plan.","Name",null,null,"nCDPhone",null,"Phone",null,null,null,null,null,null,"DET Region:",{"$f":"IF(nDETRegion=0,\"\",nDETRegion)","v":""}]
["UF01HelpTxt05","Enter the phone number of your preferred contact for queries regarding this Delivery Plan.","Phone",null,null,"nCDEmail",null,"Email",null,null,null,null,null,null,"ACFE Region:",{"$f":"IF(nACFERegion=0,\"\",nACFERegion)","v":""}]
["UF01HelpTxt06","Enter the email address me of your preferred contact for queries regarding this Delivery Plan.","Email",null,"Delivery Plan Details","nDPVersion",null,"Version",null,null,null,null,null,null,"RTO:",{"$f":"IF(nRTOStatus=0,\"\",nRTOStatus)","v":""}]
["UF01HelpTxt07","Click for help completing this form and for contact detail for Department Staff. ","Help",null,null,"nDPDate",null,"Date",null,null,null,null,null,null,"Learn Local Contact"]
["UF01HelpTxt08","Clicking this button will exit without saving any changes.","Cancel",null,null,"nDPStatus",null,"Status",null,null,null,null,null,null,"Name",{"$f":"IF(nCDName=0,\"\",nCDName)","v":""}]
["UF01HelpTxt09","Clicking this button will save all changes, you will be able to edit this information should need arise.","Save",null,"Provider","nTOID",null,null,null,null,null,null,null,null,"Postion",{"$f":"IF(nCDPosition=0,\"\",nCDPosition)","v":""}]
["UF01HelpTxt10","Please enter the Version Number of this Delivery Plan.","Version",null,null,"nName",{"$f":"IFERROR(VLOOKUP(G11,TB_Provider[#All],2,FALSE),\"\")","v":""},null,null,null,null,null,null,null,"Phone",{"$f":"IF(nCDPhone=0,\"\",nCDPhone)","v":""}]
["UF01HelpTxt11","Please enter the date this Delivery Plan was submitted to the Department.","Date",null,null,"nABNName",{"$f":"IFERROR(VLOOKUP(G11,TB_Provider[#All],3,FALSE),\"\")","v":""},null,null,null,null,null,null,null,"Email",{"$f":"IF(nCDEmail=0,\"\",nCDEmail)","v":""}]
["UF01HelpTxt12","Enter the position/role of your preferred contact for queries regarding this Delivery Plan.","Role",null,null,"nDETRegion",{"$f":"IFERROR(VLOOKUP(G11,TB_Provider[#All],4,FALSE),\"\")","v":""}]
["UF01HelpTxt13","Select the current status of this Delivery Plan","Status",null,null,"nACFERegion",{"$f":"IFERROR(VLOOKUP(G11,TB_Provider[#All],5,FALSE),\"\")","v":""}]
[null,null,null,null,null,"nRTOStatus",{"$f":"IFERROR(VLOOKUP(G11,TB_Provider[#All],6,FALSE),\"\")","v":""}]
[null,null,null,null,null,"nUniqueID",{"$f":"IFERROR(VLOOKUP(G11,TB_Provider[#All],7,FALSE),\"\")","v":""}]
[null,null,null,null,null,"nPDUpdateDate"]
[]
[null,null,null,null,null,"nRefreshDate"]
[null,null,null,null,null,"nShortRegion",{"$f":"IFERROR(VLOOKUP(G11,TB_Provider[#All],8,FALSE),\"\")","v":""}]
["UF02HelpTxt01","Use this form to enter information about programs.","Default"]
["UF02HelpTxt02","This section collects information about the course focus.","1. About the Course"]
["UF02HelpTxt03","Learn Local providers are invited to request 2022 ACFE training delivery hours under the following program streams as applicable:\n- Learner Engagement A-Frame Program (LEAP) - funded from the ACFE LEAP Budget.\n- Digital Skills: Digital Literacy Essentials and Digital Skills for Employability - funded from the Victorian Budget 2021-22.\n- General Pre-accredited Training - funded from the ACFE Pre-accredited Training Budget. All training delivery is subject to an approved Delivery Plan \n   specifying delivery under each program stream.","Program Stream"]
["UF02HelpTxt04",{"$f":"IF(nStream=\"Learner Engagement A-Frame Program\",UserFormHelp!B54,IF(nStream=\"Digital Skills\",UserFormHelp!B55,IF(nStream=\"General Pre-accredited Training\",UserFormHelp!B56,\"\")))","v":""},"Program Category"]
["UF02HelpTxt05","This funding code is predetermined by the type of course you have selected and must be entered into your Student Management System's\n\"NAT00060 - Subject file\" section for accurate reporting to SVTS.","Funding Code"]
["UF02HelpTxt06","This course code is predetermined by the type of course you have selected, your organisation ID, and a unique identifier in this Delivery Plan. It must \nbe entered into your Student Management System's \"NAT00060 - Subject file\" section as the \"Subject Identifier\" for accurate reporting to SVTS.","Subject Code"]
["UF02HelpTxt07","The Course Name is prepopulated, but can be changed to your preferred name to support your local branding or tracking of courses for different \nclass or sessions. It must be entered into your Student Management System's \"NAT00060 - Subject file\" section as the \"Subject Name\" for \naccurate reporting to SVTS.","Subject Name"]
["UF02HelpTxt08","This section collects information about the course content.","2. About the Pedagogy"]
["UF02HelpTxt09","Please indicate whether your course is based on a centralised curriculum or one the you have developed.","Curriculum Source"]
["UF02HelpTxt10","Please indicated whether this is a new or existing course.","New/Existing course:"]
["UF02HelpTxt11","Please submit a Course Plan Part 1 - Overview for all programs.","Overview/A-Frame"]
["UF02HelpTxt12","Please indicated whether this A-frame been moderated.","Moderated A-frame"]
["UF02HelpTxt13","Please explain the learning outcomes and include the pathways for this program.","Learning Outcome including pathways"]
["UF02HelpTxt14","Please outline the engagement strategy and rationale specifying why this is a LEAP course and not a Pre-accredited course. ","Engagement Strategy and rationale for reduced hours"]
["UF02HelpTxt15","This section collects information on delivery place and time, mode, and expected volume.","3. About Delivery"]
["UF02HelpTxt16","Please select the Local Government Area (LGA) that this course will be delivered in. If you plan to deliver in multiple LGAs you will need to create \na separate course entry for each LGA, these separate courses will have different course codes but all other information should be the same.","LGA"]
["UF02HelpTxt17","Please select the Term or Terms that you plan to delivery this course.","Terms"]
["UF02HelpTxt18","Please enter the planned Student Contact Hours (SCH) for each course. Note that some program categories have pre-determined SCH ranges. For \nexample LEAP courses must be between 5 and 19 SCH, General Pre-accedited courses must be 20 SCH or more, Digital Literacy Essentials courses \nbased on the centeralise curriculum (Digital Essentials Level 1 and Level 2) must be 30 SCH, and all other Digital Literacy Skills for Adults must be \n60 SCH or less. Nte that the SCH must be entered into your Student Management System's \"NAT00060 - Subject file\" section as the \"Nominal Hours\" \nfor accurate reporting to SVTS.","SCH per enrolment"]
["UF02HelpTxt19","Please enter the total number of Learner that you expect to entrole over the full year.","Total Students"]
["UF02HelpTxt20","Please indicate the location site for delivery and any relevant partnerships eg: industry, school, community library, Neighbourhood House, TAFE.","Delivery site & partnerships"]
["UF02HelpTxt21","All proposed courses in 2022 must be delivered using one of the following modes of delivery:\n- Face to Face.\n- Online classes.\n- Blended, a mix of face to face and structured online classes, facilitated by a trainer.","Delivery Mode"]
["UF02HelpTxt22",{"$f":"\"Specific guidelines on completing \"&C43&\" button - To be drafted\"","v":"Specific guidelines on completing Help button - To be drafted"},"Help"]
["UF02HelpTxt23","Clicking this button will exit the form without any changes being saved.","Exit button"]
["UF02HelpTxt24","Clicking this button will save the program details selected in this form. You can Edit/Delete this information at a later time.","Save"]
["UF02HelpTxt25",{"$f":"\"Specific guidelines on completing \"&C46&\" section - To be drafted\"","v":"Specific guidelines on completing Summary section - To be drafted"},"Summary"]
["UF02HelpTxt26","Clicking this button will reset the form without any changes being saved.","Clear"]
[]
[]
[]
[]
[]
[]
[null,"“LEAP” includes short courses designed to improve learner engagement with pre-accredited training. LEAP aims to provide flexible pathways to further \neducation, training and employment, for learners who may find longer programs a barrier to participation."]
[null,"“Digital Literacy Essentials” courses that provide adult Victorians with the entry-level digital skills required to make basic use of digital devices and online \napplications. Providers can opt to deliver using the centralised curriculum or develop their own.\n“Digital Skills for Employability” courses with a specific focus on employability, providing adult Victorians with core employability skills training which \nembed a digital component. Providers can opt to deliver using the centralised curriculum (which is under development) or develop their own."]
[null,"“Language” includes courses focused on speaking, reading and writing English for learners who speak English as an additional language.\n“Literacy and Numeracy” includes courses focused on reading and writing everyday texts, including digital texts and/or using maths in everyday life, \n  either localised or Skills for Work and Study.\n“Employability” includes courses focused on assisting learners to develop and improve their core and transferable skills to engage in the workplace.\n“Vocational” includes courses focused on assisting learners to develop their understanding and/or skills in a specific industry or employment sector."]

{"sheet":"DepContacts","index":9,"n_rows":36,"n_cols":10,"rows_kept":36,"cut":false,"hidden":true,"merged":[]}
[]
[]
[null,"South Western Victoria Regional Team",null,null,null,null,{"$f":"OFFSET(B1,2+$H$14,0)","v":{"$error":"#N/A"}}]
["South Western Victoria","Georgina Ryder","Manager SWV","5215 5204","Georgina.Ryder@education.vic.gov.au",null,{"$f":"IF(OFFSET(B1,3+$H$14,0)=\"\",\"\",OFFSET(B1,3+$H$14,0))","v":{"$error":"#N/A"}},{"$f":"IF(OFFSET(C1,3+$H$14,0)=\"\",\"\",OFFSET(C1,3+$H$14,0))","v":{"$error":"#N/A"}},{"$f":"IF(OFFSET(D1,3+$H$14,0)=\"\",\"\",OFFSET(D1,3+$H$14,0))","v":{"$error":"#N/A"}},{"$f":"IF(OFFSET(E1,3+$H$14,0)=\"\",\"\",OFFSET(E1,3+$H$14,0))","v":{"$error":"#N/A"}}]
["South Western Victoria","David Harris","Senior Project Officer","5215 5203","David.Harris@education.vic.gov.au",null,{"$f":"IF(OFFSET(B1,4+$H$14,0)=\"\",\"\",OFFSET(B1,4+$H$14,0))","v":{"$error":"#N/A"}},{"$f":"IF(OFFSET(C1,4+$H$14,0)=\"\",\"\",OFFSET(C1,4+$H$14,0))","v":{"$error":"#N/A"}},{"$f":"IF(OFFSET(D1,4+$H$14,0)=\"\",\"\",OFFSET(D1,4+$H$14,0))","v":{"$error":"#N/A"}},{"$f":"IF(OFFSET(E1,4+$H$14,0)=\"\",\"\",OFFSET(E1,4+$H$14,0))","v":{"$error":"#N/A"}}]
["South Western Victoria","Marcia Thomas","Senior Project Officer","4113 7431","Marcia.Thomas@education.vic.gov.au",null,{"$f":"IF(OFFSET(B1,5+$H$14,0)=\"\",\"\",OFFSET(B1,5+$H$14,0))","v":{"$error":"#N/A"}},{"$f":"IF(OFFSET(C1,5+$H$14,0)=\"\",\"\",OFFSET(C1,5+$H$14,0))","v":{"$error":"#N/A"}},{"$f":"IF(OFFSET(D1,5+$H$14,0)=\"\",\"\",OFFSET(D1,5+$H$14,0))","v":{"$error":"#N/A"}},{"$f":"IF(OFFSET(E1,5+$H$14,0)=\"\",\"\",OFFSET(E1,5+$H$14,0))","v":{"$error":"#N/A"}}]
[null,"Peter Mcnabb","Project Officer","5215 5202","Peter.Mcnabb@education.vic.gov.au",null,{"$f":"IF(OFFSET(B1,6+$H$14,0)=\"\",\"\",OFFSET(B1,6+$H$14,0))","v":{"$error":"#N/A"}},{"$f":"IF(OFFSET(C1,6+$H$14,0)=\"\",\"\",OFFSET(C1,6+$H$14,0))","v":{"$error":"#N/A"}},{"$f":"IF(OFFSET(D1,6+$H$14,0)=\"\",\"\",OFFSET(D1,6+$H$14,0))","v":{"$error":"#N/A"}},{"$f":"IF(OFFSET(E1,6+$H$14,0)=\"\",\"\",OFFSET(E1,6+$H$14,0))","v":{"$error":"#N/A"}}]
[null,null,null,null,null,null,{"$f":"IF(OFFSET(B1,7+$H$14,0)=\"\",\"\",OFFSET(B1,7+$H$14,0))","v":{"$error":"#N/A"}},{"$f":"IF(OFFSET(C1,7+$H$14,0)=\"\",\"\",OFFSET(C1,7+$H$14,0))","v":{"$error":"#N/A"}},{"$f":"IF(OFFSET(D1,7+$H$14,0)=\"\",\"\",OFFSET(D1,7+$H$14,0))","v":{"$error":"#N/A"}},{"$f":"IF(OFFSET(E1,7+$H$14,0)=\"\",\"\",OFFSET(E1,7+$H$14,0))","v":{"$error":"#N/A"}}]
[]
["South Eastern Victoria ","South Eastern Victoria  Regional Team"]
["South Eastern Victoria ","Robyn Downie","Manager SEV","8904 2580","Robyn.Downie@education.vic.gov.au"]
["South Eastern Victoria ","Jeremy Brewer","Senior Project Officer","8904 2503","Jeremy.Brewer@education.vic.gov.au"]
["South Eastern Victoria ","Irene Desiatov","Project Officer","8904 2433","Irene.Desiatov@education.vic.gov.au"]
[null,null,null,null,null,null,{"$f":"nDETRegion","v":""},{"$f":"VLOOKUP(G14,G16:H21,2,FALSE)","v":{"$error":"#N/A"}}]
[]
[null,null,null,null,null,null,"South Western Victoria",0]
[null,"North Western Victoria Regional Team",null,null,null,null,"South Eastern Victoria",7]
["North Western Victoria","Kaye Callaghan","Manager NWV","4433 7582","Kaye.Callaghan@education.vic.gov.au",null,"North Western Victoria",14]
["North Western Victoria","Simon Flood","Senior Project Officer","7022 0580","Simon.Flood@education.vic.gov.au",null,"North Eastern Victoria",21]
["North Western Victoria","Ash Prasad","Project Officer","4433 7671","Ashwini.Prasad@education.vic.gov.au",null,"Statewide",28]
["North Western Victoria","Paul Frye",null,"5479 1111","Paul.Frye@education.vic.gov.au",null,"Cross Regional",28]
[]
[]
[null,"North Eastern Victoria Regional Team"]
["North Eastern Victoria","Cathy Clark","A/g Manager NEV","9084 8573","Catherine.Clark@education.vic.gov.au "]
["North Eastern Victoria","Iwona Jonasz","Senior Project Officer","7022 1804","Iwona.Jonasz@education.vic.gov.au"]
["North Eastern Victoria","Mandy Redfern","Senior Project Officer","7022 0419 ","Amanda.Redfern@education.vic.gov.au"]
["North Eastern Victoria","Janine Summers","Project Officer","7022 1806","Janine.Summers@education.vic.gov.au"]
[]
[]
[null,"ACFE Sector Engagement & Support Unit"]
["Statewide","Teresa Durka","Manager","7022 1601","Teresa.Durka@education.vic.gov.au"]
["Statewide","Andrew Kaighin","Senior Project Officer","7022 1598","Andrew.Kaighin@education.vic.gov.au"]
["Statewide","Jane Mancini","Senior Project Officer","7022 5592","Jane.Mancini@education.vic.gov.au "]
["Statewide","Danny Forwood","Senior Policy Officer","9651 3114","Danny.Forwood@education.vic.gov.au "]
["Statewide","Anna Oxley","Project Officer","7022 0164","Anna.Oxley@education.vic.gov.au"]

{"sheet":"Programs","index":10,"n_rows":85,"n_cols":41,"rows_kept":85,"cut":false,"hidden":true,"merged":[[14,34,14,38]]}
[null,null,null,null,null,null,null,null,null,null,null,null,null,null,null,null,null,null,"nfundingRate",9.1]
[null,null,null,null,null,null,null,null,null,null,null,null,null,null,null,null,null,null,"nSubjectPre",null,null,null,null,null,null,null,null,null,"Face to face","Online","Blended"]
[null,null,null,null,null,null,null,null,null,null,null,null,null,null,null,null,null,null,"nUniqueID",{"$f":"nUniqueID","v":""},null,null,null,null,null,"LEAP",null,"Learner Engagement A-Frame Program",{"$f":"TEXT(SUMIFS(TB_Results[Total SCH],TB_Results[Stream],$AB3,TB_Results[Delivery Mode],AC$2),\"#,##0;-#,##0;\"\"–\"\"\")","v":"–"},{"$f":"TEXT(SUMIFS(TB_Results[Total SCH],TB_Results[Stream],$AB3,TB_Results[Delivery Mode],AD$2),\"#,##0;-#,##0;\"\"–\"\"\")","v":"–"},{"$f":"TEXT(SUMIFS(TB_Results[Total SCH],TB_Results[Stream],$AB3,TB_Results[Delivery Mode],AE$2),\"#,##0;-#,##0;\"\"–\"\"\")","v":"–"},{"$f":"TEXT(SUM(IFERROR(VALUE(AC3),0),IFERROR(VALUE(AD3),0),IFERROR(VALUE(AE3),0)),\"#,##0;-#,##0;\"\"–\"\"\")","v":"–"}]
[null,null,null,null,null,null,null,null,null,null,null,null,null,null,null,null,null,null,"nProgramCount",1,null,null,null,null,null,"DLT",null,"Digital Literacy Skills for Adults",{"$f":"TEXT(SUMIFS(TB_Results[Total SCH],TB_Results[Stream],$AB4,TB_Results[Delivery Mode],AC$2),\"#,##0;-#,##0;\"\"–\"\"\")","v":"–"},{"$f":"TEXT(SUMIFS(TB_Results[Total SCH],TB_Results[Stream],$AB4,TB_Results[Delivery Mode],AD$2),\"#,##0;-#,##0;\"\"–\"\"\")","v":"–"},{"$f":"TEXT(SUMIFS(TB_Results[Total SCH],TB_Results[Stream],$AB4,TB_Results[Delivery Mode],AE$2),\"#,##0;-#,##0;\"\"–\"\"\")","v":"–"},"–"]
["Streams",null,"Category","Prefix","FCode",null,"Category","Prefix","FCode",null,"Category","Prefix","FCode",null,"ACFELGA","ABSLGA","Column1",null,null,{"$f":"TEXT(nProgramCount,\"000\")","v":"001"},null,null,"Item",null,null,"PAT",null,"General Pre-accredited Training",{"$f":"TEXT(SUMIFS(TB_Results[Total SCH],TB_Results[Stream],$AB5,TB_Results[Delivery Mode],AC$2),\"#,##0;-#,##0;\"\"–\"\"\")","v":"–"},{"$f":"TEXT(SUMIFS(TB_Results[Total SCH],TB_Results[Stream],$AB5,TB_Results[Delivery Mode],AD$2),\"#,##0;-#,##0;\"\"–\"\"\")","v":"–"},{"$f":"TEXT(SUMIFS(TB_Results[Total SCH],TB_Results[Stream],$AB5,TB_Results[Delivery Mode],AE$2),\"#,##0;-#,##0;\"\"–\"\"\")","v":"–"},"–"]
["*Please Select",null,"*Please Select",null,null,null,"*Please Select",null,null,null,"*Please Select",null,null,null,"*Please Select",null,{"$f":"LEN(TB_LGA[[#This Row],[ACFELGA]])","v":14},"CBStream","nStream","*Please Select",null,null,"Stream",null,null,"Tot",null,null,{"$f":"TEXT(SUM(\nIFERROR(VALUE(AC3),0),\nIFERROR(VALUE(AC4),0),\nIFERROR(VALUE(AC5),0)),\"#,##0;-#,##0;\"\"–\"\"\")","v":"–"},{"$f":"TEXT(SUM(\nIFERROR(VALUE(AD3),0),\nIFERROR(VALUE(AD4),0),\nIFERROR(VALUE(AD5),0)),\"#,##0;-#,##0;\"\"–\"\"\")","v":"–"},{"$f":"TEXT(SUM(\nIFERROR(VALUE(AE3),0),\nIFERROR(VALUE(AE4),0),\nIFERROR(VALUE(AE5),0)),\"#,##0;-#,##0;\"\"–\"\"\")","v":"–"},{"$f":"TEXT(SUM(\nIFERROR(VALUE(AF3),0),\nIFERROR(VALUE(AF4),0),\nIFERROR(VALUE(AF5),0)),\"#,##0;-#,##0;\"\"–\"\"\")","v":"–"}]
["Learner Engagement A-Frame Program",null,"LEAP","22ACL","ACL",null,"Digital Essentials Level 1","22DLE1","AC2",null,"Language","22LAN","ACE",null,"Alpine","Alpine (S)",{"$f":"LEN(TB_LGA[[#This Row],[ACFELGA]])","v":6},"CBLGA","nLGA","*Please Select",null,null,"LGA"]
["Digital Skills",null,null,null,null,null,"Digital Essentials Level 2","22DLE2","AC2",null,"Literacy and Numeracy","22LLN","ACE",null,"Ararat","Ararat (RC)",{"$f":"LEN(TB_LGA[[#This Row],[ACFELGA]])","v":6},"CBCategory","nCategory","*Select Program Stream First",null,null,"Category"]
["General Pre-accredited Training",null,null,null,null,null,"Digital Essentials Other","22DLEO","AC2",null,"Employability","22EMP","ACE",null,"Ballarat","Ballarat (C)",{"$f":"LEN(TB_LGA[[#This Row],[ACFELGA]])","v":8},null,"nSubjectCode",{"$f":"IF(nSubjectPre=\"\",\"\",nSubjectPre&T3&T5)","v":""},null,null,"SubjectCode",null,null,null,null,null,"nLEAPFTF","nLEAPOL","nLEAPBL","nLEAPTSCH",null,"LblLEAPF2F","LblLEAPOL","LblLEAPBL","LblLEAPTSCH",{"$f":"AH9&\".Caption = Range(\"&$AM$38&AC9&$AM$38&\")\"","v":"LblLEAPF2F.Caption = Range(\"nLEAPFTF\")"},{"$f":"AI9&\".Caption = Range(\"&$AM$38&AD9&$AM$38&\")\"","v":"LblLEAPOL.Caption = Range(\"nLEAPOL\")"},"LblLEAPBL.Caption = Range(\"nLEAPBL\")","LblLEAPTSCH.Caption = Range(\"nLEAPTSCH\")"]
[null,null,null,null,null,null,"Digital Skills for Employability","22DSE1","AC2",null,"Vocational","22VOC","ACE",null,"Banyule","Banyule (C)",{"$f":"LEN(TB_LGA[[#This Row],[ACFELGA]])","v":7},null,"nSubjectName",null,null,null,"SubjectName",null,null,null,null,null,"nDLTFTF","nDLTOL","nDLTBL","nDLTTSCH",null,"LblDigF2F","LblDigOL","LblDigBL","LblDigTSCH",{"$f":"AH10&\".Caption = Range(\"&$AM$38&AC10&$AM$38&\")\"","v":"LblDigF2F.Caption = Range(\"nDLTFTF\")"},"LblDigOL.Caption = Range(\"nDLTOL\")","LblDigBL.Caption = Range(\"nDLTBL\")","LblDigTSCH.Caption = Range(\"nDLTTSCH\")"]
[null,null,null,null,null,null,"Digital Skills for Employability Other","22DSEO","AC2",null,null,null,null,null,"Bass Coast","Bass Coast (S)",{"$f":"LEN(TB_LGA[[#This Row],[ACFELGA]])","v":10},null,"nSCHPerStudent",null,null,null,"ProgSCH",null,null,null,null,null,"nPATFTF","nPATOL","nPATBL","nPATTSCH",null,"LblPAF2F","LblPAOL","LblPABL","LblPATSCH","LblPAF2F.Caption = Range(\"nPATFTF\")","LblPAOL.Caption = Range(\"nPATOL\")","LblPABL.Caption = Range(\"nPATBL\")","LblPATSCH.Caption = Range(\"nPATTSCH\")"]
[null,null,null,null,null,null,null,null,null,null,null,null,null,null,"Baw Baw","Baw Baw (S)",{"$f":"LEN(TB_LGA[[#This Row],[ACFELGA]])","v":7},null,"nNoStudents",null,null,null,"NoStudents",null,null,null,null,null,"nTotFTF","nTotOL","nTotBL","nTotTSCH",null,"LblTF2F","LblTOL","LblTBL","LblTTSCH","LblTF2F.Caption = Range(\"nTotFTF\")","LblTOL.Caption = Range(\"nTotOL\")","LblTBL.Caption = Range(\"nTotBL\")","LblTTSCH.Caption = Range(\"nTotTSCH\")"]
[null,null,null,null,null,null,null,null,null,null,null,null,null,null,"Bayside","Bayside (C)",{"$f":"LEN(TB_LGA[[#This Row],[ACFELGA]])","v":7},null,"nTotalSCH",{"$f":"nSCHPerStudent*nNoStudents","v":0},null,{"$f":"ISTEXT(nTotalSCH)","v":false},"TotalSCH"]
[null,null,null,null,null,null,null,null,null,null,null,null,null,null,"Benalla","Benalla (RC)",{"$f":"LEN(TB_LGA[[#This Row],[ACFELGA]])","v":7},null,"nTotalFunding",{"$f":"nTotalSCH*nfundingRate","v":0},null,null,"TotalFunding",null,null,null,null,null,null,null,null,null,null,"Pmt4"]
["CurrSource",null,null,null,null,null,null,null,null,null,null,null,null,null,"Boroondara","Boroondara (C)",{"$f":"LEN(TB_LGA[[#This Row],[ACFELGA]])","v":10},null,"nFundingCode",null,null,null,"Funding Code",null,null,null,null,null,null,null,null,null,null,null,"Payment Schedule (if reporting Targets achieved)"]
["*Please Select",null,null,null,null,null,null,null,null,null,null,null,null,null,"Brimbank","Brimbank (C)",{"$f":"LEN(TB_LGA[[#This Row],[ACFELGA]])","v":8},"CBSource","nCurrSource","*Please Select",null,null,"CurriculumSource",null,null,null,null,null,"No.\nCourses","SCH/\nCourse","Students","Total\nSCH","Total\nFunding",null,"Pmt1\nJan/Feb","Pmt2\nApril","Pmt3\nAug","Pmt4\nOct","Total"]
["Provider Developed",null,null,null,null,null,null,null,null,null,null,null,null,null,"Buloke","Buloke (S)",{"$f":"LEN(TB_LGA[[#This Row],[ACFELGA]])","v":6},"CBNewExisting","nNewCourse","*Please Select",null,null,"New_Old_Course",null,null,null,null,"Learner Engagement A-Frame Program",{"$f":"COUNTIF(TB_Results[Stream],AB17)","v":0},{"$f":"SUMIF(TB_Results[Stream],AB17,TB_Results[Course SCH])","v":0},{"$f":"SUMIF(TB_Results[Stream],AB17,TB_Results[No Students])","v":0},{"$f":"SUMIF(TB_Results[Stream],AB17,TB_Results[Total SCH])","v":0},{"$f":"TEXT(AF17*9.1,\"$#,##0.00;-$#,##0.00;\"\"–\"\"\")","v":"–"},null,{"$f":"TEXT(IFERROR(AG17*0.5,0),\"$#,##0.00;-$#,##0.00;\"\"–\"\"\")","v":"–"},{"$f":"TEXT(IFERROR(AG17*0,0),\"$#,##0.00;-$#,##0.00;\"\"–\"\"\")","v":"–"},{"$f":"TEXT(IFERROR(AG17*0.5,0),\"$#,##0.00;-$#,##0.00;\"\"–\"\"\")","v":"–"},{"$f":"TEXT(IFERROR(AG17*0,0),\"$#,##0.00;-$#,##0.00;\"\"–\"\"\")","v":"–"},{"$f":"AG17","v":"–"}]
["Centrally Developed",null,null,null,null,null,null,null,null,null,null,null,null,null,"Campaspe","Campaspe (S)",{"$f":"LEN(TB_LGA[[#This Row],[ACFELGA]])","v":8},"CBOverview","nOverviewAFrame","*Please Select",null,null,"CoursePlan",null,null,null,null,"Digital Skills"]
["Mixed",null,null,null,null,null,null,null,null,null,null,null,null,null,"Cardinia","Cardinia (S)",{"$f":"LEN(TB_LGA[[#This Row],[ACFELGA]])","v":8},"CBModerated","nModAframe","*Please Select",null,null,"AframeModerated",null,null,null,null,"Digital Essentials Level 1",{"$f":"COUNTIFS(TB_Results[Stream],$AB$18,TB_Results[Category],Programs!AB19)","v":0},{"$f":"SUMIFS(TB_Results[Course SCH],TB_Results[Category],Programs!AB19,TB_Results[Stream],$AB$18)","v":0},{"$f":"SUMIFS(TB_Results[No Students],TB_Results[Category],Programs!AB19,TB_Results[Stream],$AB$18)","v":0},{"$f":"SUMIFS(TB_Results[Total SCH],TB_Results[Category],Programs!AB19,TB_Results[Stream],$AB$18)","v":0},{"$f":"TEXT(AF19*9.1,\"$#,##0.00;-$#,##0.00;\"\"–\"\"\")","v":"–"},null,{"$f":"TEXT(IFERROR(AG19*0.35,0),\"$#,##0.00;-$#,##0.00;\"\"–\"\"\")","v":"–"},{"$f":"TEXT(IFERROR(AG19*0.25,0),\"$#,##0.00;-$#,##0.00;\"\"–\"\"\")","v":"–"},{"$f":"TEXT(IFERROR(AG19*0.2,0),\"$#,##0.00;-$#,##0.00;\"\"–\"\"\")","v":"–"},{"$f":"TEXT(IFERROR(AG19*0.2,0),\"$#,##0.00;-$#,##0.00;\"\"–\"\"\")","v":"–"},{"$f":"AG19","v":"–"}]
[null,null,null,null,null,null,null,null,null,null,null,null,null,null,"Casey","Casey (C)",{"$f":"LEN(TB_LGA[[#This Row],[ACFELGA]])","v":5},null,"nEngagementStrategy",null,null,null,"EngageStrategy",null,null,null,null,"Digital Essentials Level 2",{"$f":"COUNTIFS(TB_Results[Stream],$AB$18,TB_Results[Category],Programs!AB20)","v":0},{"$f":"SUMIFS(TB_Results[Course SCH],TB_Results[Category],Programs!AB20,TB_Results[Stream],$AB$18)","v":0},{"$f":"SUMIFS(TB_Results[No Students],TB_Results[Category],Programs!AB20,TB_Results[Stream],$AB$18)","v":0},{"$f":"SUMIFS(TB_Results[Total SCH],TB_Results[Category],Programs!AB20,TB_Results[Stream],$AB$18)","v":0},"–",null,{"$f":"TEXT(IFERROR(AG20*0.35,0),\"$#,##0.00;-$#,##0.00;\"\"–\"\"\")","v":"–"},"–","–","–","–"]
[null,null,null,null,null,null,"LEAP","22ACL",null,null,null,null,null,null,"Central Goldfields","Central Goldfields (S)",{"$f":"LEN(TB_LGA[[#This Row],[ACFELGA]])","v":18},null,"nLearningOutcome",null,null,null,"LearningOutcome",null,null,null,null,"Digital Essentials Other",{"$f":"COUNTIFS(TB_Results[Stream],$AB$18,TB_Results[Category],Programs!AB21)","v":0},{"$f":"SUMIFS(TB_Results[Course SCH],TB_Results[Category],Programs!AB21,TB_Results[Stream],$AB$18)","v":0},{"$f":"SUMIFS(TB_Results[No Students],TB_Results[Category],Programs!AB21,TB_Results[Stream],$AB$18)","v":0},{"$f":"SUMIFS(TB_Results[Total SCH],TB_Results[Category],Programs!AB21,TB_Results[Stream],$AB$18)","v":0},"–",null,"–","–","–","–","–"]
[null,null,null,null,null,null,"Digital Essentials Level 1","22DLE1",null,null,null,null,null,null,"Colac-Otway","Colac-Otway (S)",{"$f":"LEN(TB_LGA[[#This Row],[ACFELGA]])","v":11},"CBDeliveryMode","nDeliveryMode","*Please Select",null,null,"Mode",null,null,null,null,"Digital Skills for Employability",{"$f":"COUNTIFS(TB_Results[Stream],$AB$18,TB_Results[Category],Programs!AB22)","v":0},{"$f":"SUMIFS(TB_Results[Course SCH],TB_Results[Category],Programs!AB22,TB_Results[Stream],$AB$18)","v":0},{"$f":"SUMIFS(TB_Results[No Students],TB_Results[Category],Programs!AB22,TB_Results[Stream],$AB$18)","v":0},{"$f":"SUMIFS(TB_Results[Total SCH],TB_Results[Category],Programs!AB22,TB_Results[Stream],$AB$18)","v":0},"–",null,"–","–","–","–","–"]
[null,null,null,null,null,null,"Digital Essentials Level 2","22DLE2",null,null,null,null,null,null,"Corangamite","Corangamite (S)",{"$f":"LEN(TB_LGA[[#This Row],[ACFELGA]])","v":11},"CBPartnership","nPartnerships",null,null,null,"Partnership",null,null,null,null,"Digital Skills for Employability Other",{"$f":"COUNTIFS(TB_Results[Stream],$AB$18,TB_Results[Category],Programs!AB23)","v":0},{"$f":"SUMIFS(TB_Results[Course SCH],TB_Results[Category],Programs!AB23,TB_Results[Stream],$AB$18)","v":0},{"$f":"SUMIFS(TB_Results[No Students],TB_Results[Category],Programs!AB23,TB_Results[Stream],$AB$18)","v":0},{"$f":"SUMIFS(TB_Results[Total SCH],TB_Results[Category],Programs!AB23,TB_Results[Stream],$AB$18)","v":0},"–",null,"–","–","–","–","–"]
["NewCourse",null,null,null,null,null,"Digital Essentials Other","22DLEO",null,null,null,null,null,null,"Darebin","Darebin (C)",{"$f":"LEN(TB_LGA[[#This Row],[ACFELGA]])","v":7},null,"nTerm1","No",null,null,"Term1",null,null,null,null,"All Digital Literacy Skills for Adults",{"$f":"COUNTIF(TB_Results[Stream],AB18)","v":0},{"$f":"SUMIF(TB_Results[Stream],AB18,TB_Results[Course SCH])","v":0},{"$f":"SUMIF(TB_Results[Stream],AB18,TB_Results[No Students])","v":0},{"$f":"SUMIF(TB_Results[Stream],AB18,TB_Results[Total SCH])","v":0},"–",null,"–","–","–","–","–"]
["*Please Select",null,null,null,null,null,"Digital Skills for Employability ","22DSE1",null,null,null,null,null,null,"East Gippsland","East Gippsland (S)",{"$f":"LEN(TB_LGA[[#This Row],[ACFELGA]])","v":14},null,"nTerm2","No",null,null,"Term2",null,null,null,null,"General Pre-accredited Training",null,null,null,null,null,null,"–","–","–","–"]
["New",null,null,null,null,null,"Digital Skills for Employability Other","22DSEO",null,null,null,null,null,null,"Frankston","Frankston (C)",{"$f":"LEN(TB_LGA[[#This Row],[ACFELGA]])","v":9},null,"nTerm3","No",null,null,"Term3",null,null,null,null,"Language",{"$f":"COUNTIFS(TB_Results[Stream],$AB$25,TB_Results[Category],Programs!AB26)","v":0},{"$f":"SUMIFS(TB_Results[Course SCH],TB_Results[Category],AB26,TB_Results[Stream],$AB$25)","v":0},{"$f":"SUMIFS(TB_Results[No Students],TB_Results[Category],AB26,TB_Results[Stream],$AB$25)","v":0},{"$f":"SUMIFS(TB_Results[Total SCH],TB_Results[Category],AB26,TB_Results[Stream],$AB$25)","v":0},{"$f":"TEXT(AF26*9.1,\"$#,##0.00;-$#,##0.00;\"\"–\"\"\")","v":"–"},null,"–","–","–","–",{"$f":"AG26","v":"–"}]
["Existing",null,null,null,null,null,"Language","22LAN",null,null,null,null,null,null,"Gannawarra","Gannawarra (S)",{"$f":"LEN(TB_LGA[[#This Row],[ACFELGA]])","v":10},null,"nTerm4","No",null,null,"Term4",null,null,null,null,"Literacy and Numeracy",{"$f":"COUNTIFS(TB_Results[Stream],$AB$25,TB_Results[Category],Programs!AB27)","v":0},{"$f":"SUMIFS(TB_Results[Course SCH],TB_Results[Category],AB27,TB_Results[Stream],$AB$25)","v":0},{"$f":"SUMIFS(TB_Results[No Students],TB_Results[Category],AB27,TB_Results[Stream],$AB$25)","v":0},{"$f":"SUMIFS(TB_Results[Total SCH],TB_Results[Category],AB27,TB_Results[Stream],$AB$25)","v":0},"–",null,"–","–","–","–","–"]
[null,null,null,null,null,null,"Literacy and Numeracy","22LLN",null,null,null,null,null,null,"Glen Eira","Glen Eira (C)",{"$f":"LEN(TB_LGA[[#This Row],[ACFELGA]])","v":9},null,null,null,null,null,null,null,null,null,null,"Employability",{"$f":"COUNTIFS(TB_Results[Stream],$AB$25,TB_Results[Category],Programs!AB28)","v":0},{"$f":"SUMIFS(TB_Results[Course SCH],TB_Results[Category],AB28,TB_Results[Stream],$AB$25)","v":0},{"$f":"SUMIFS(TB_Results[No Students],TB_Results[Category],AB28,TB_Results[Stream],$AB$25)","v":0},{"$f":"SUMIFS(TB_Results[Total SCH],TB_Results[Category],AB28,TB_Results[Stream],$AB$25)","v":0},"–",null,"–","–","–","–","–"]
[null,null,null,null,null,null,"Employability","22EMP",null,null,null,null,null,null,"Glenelg","Glenelg (S)",{"$f":"LEN(TB_LGA[[#This Row],[ACFELGA]])","v":7},null,null,null,null,null,null,null,null,null,null,"Vocational",{"$f":"COUNTIFS(TB_Results[Stream],$AB$25,TB_Results[Category],Programs!AB29)","v":0},{"$f":"SUMIFS(TB_Results[Course SCH],TB_Results[Category],AB29,TB_Results[Stream],$AB$25)","v":0},{"$f":"SUMIFS(TB_Results[No Students],TB_Results[Category],AB29,TB_Results[Stream],$AB$25)","v":0},{"$f":"SUMIFS(TB_Results[Total SCH],TB_Results[Category],AB29,TB_Results[Stream],$AB$25)","v":0},"–",null,"–","–","–","–","–"]
[null,null,null,null,null,null,"Vocational","22VOC",null,null,null,null,null,null,"Golden Plains","Golden Plains (S)",{"$f":"LEN(TB_LGA[[#This Row],[ACFELGA]])","v":13},null,null,null,null,null,null,null,null,null,null,"All General Pre-accredited ",{"$f":"COUNTIF(TB_Results[Stream],AB25)","v":0},{"$f":"SUMIF(TB_Results[Stream],AB25,TB_Results[Course SCH])","v":0},{"$f":"SUMIF(TB_Results[Stream],AB25,TB_Results[No Students])","v":0},{"$f":"SUMIF(TB_Results[Stream],AB25,TB_Results[Total SCH])","v":0},"–",null,"–","–","–","–","–"]
[null,null,null,null,null,null,null,null,null,null,null,null,null,null,"Greater Bendigo","Greater Bendigo (C)",{"$f":"LEN(TB_LGA[[#This Row],[ACFELGA]])","v":15},null,null,null,null,null,null,null,null,null,null,"Total",{"$f":"SUM(AC30,AC24,AC17)","v":0},{"$f":"SUM(AD30,AD24,AD17)","v":0},0,0,"–",null,{"$f":"TEXT(SUM(IFERROR(VALUE(AI30),0),IFERROR(VALUE(AI24),0),IFERROR(VALUE(AI17),0)),\"$#,##0.00;-$#,##0.00;\"\"–\"\"\")","v":"–"},{"$f":"TEXT(SUM(IFERROR(VALUE(AJ30),0),IFERROR(VALUE(AJ24),0),IFERROR(VALUE(AJ17),0)),\"$#,##0.00;-$#,##0.00;\"\"–\"\"\")","v":"–"},"–","–","–"]
["OverviewAFrame",null,null,null,null,null,null,null,null,null,null,null,null,null,"Greater Dandenong","Greater Dandenong (C)",{"$f":"LEN(TB_LGA[[#This Row],[ACFELGA]])","v":17}]
["*Please Select",null,null,null,null,null,null,null,null,null,null,null,null,null,"Greater Geelong","Greater Geelong (C)",{"$f":"LEN(TB_LGA[[#This Row],[ACFELGA]])","v":15}]
["Overview",null,null,null,null,null,null,null,null,null,null,null,null,null,"Greater Shepparton","Greater Shepparton (C)",{"$f":"LEN(TB_LGA[[#This Row],[ACFELGA]])","v":18}]
["A-Frame",null,null,null,null,null,null,null,null,null,null,null,null,null,"Hepburn","Hepburn (S)",{"$f":"LEN(TB_LGA[[#This Row],[ACFELGA]])","v":7}]
[null,null,null,null,null,null,null,null,null,null,null,null,null,null,"Hindmarsh","Hindmarsh (S)",{"$f":"LEN(TB_LGA[[#This Row],[ACFELGA]])","v":9},null,null,null,null,null,null,null,null,null,null,null,null,null,null,null,null,null,null,null,null,"$#,##0.00;-$#,##0.00;\"–\""]
[null,null,null,null,null,null,null,null,null,null,null,null,null,null,"Hobsons Bay","Hobsons Bay (C)",{"$f":"LEN(TB_LGA[[#This Row],[ACFELGA]])","v":11}]
[null,null,null,null,null,null,null,null,null,null,null,null,null,null,"Horsham","Horsham (RC)",{"$f":"LEN(TB_LGA[[#This Row],[ACFELGA]])","v":7},null,null,null,null,null,null,null,null,null,null,null,null,null,null,null,null,null,null,null,null,null,"\""]
[null,null,null,null,null,null,null,null,null,null,null,null,null,null,"Hume","Hume (C)",{"$f":"LEN(TB_LGA[[#This Row],[ACFELGA]])","v":4},null,{"$f":"INT(nNoStudents)","v":0}]
["ModAframe",null,null,null,null,null,null,null,null,null,null,null,null,null,"Indigo","Indigo (S)",{"$f":"LEN(TB_LGA[[#This Row],[ACFELGA]])","v":6},null,null,null,null,null,null,null,null,null,null,null,"nLEAPCourse","nLEAPSCH","nLEAPStud","nLEAPTSCH","nLEAPTfund","nLEAPPmt1","nLEAPPmt2","nLEAPPmt3","nLEAPPmt4"]
["*Please Select",null,null,null,null,null,null,null,null,null,null,null,null,null,"Kingston","Kingston (C)",{"$f":"LEN(TB_LGA[[#This Row],[ACFELGA]])","v":8},null,null,null,null,null,null,null,null,null,null,null,"nDLE1Course","nDLE1SCH","nDLE1Stud","nDLE1TSCH","nDLE1Tfund","nDLE1Pmt1","nDLE1Pmt2","nDLE1Pmt3","nDLE1Pmt4"]
["Moderated",null,null,null,null,null,null,null,null,null,null,null,null,null,"Knox","Knox (C)",{"$f":"LEN(TB_LGA[[#This Row],[ACFELGA]])","v":4},null,null,null,null,null,null,null,null,null,null,null,"nDLE2Course","nDLE2SCH","nDLE2Stud","nDLE2TSCH","nDLE2Tfund","nDLE2Pmt1","nDLE2Pmt2","nDLE2Pmt3","nDLE2Pmt4"]
["Not Moderated",null,null,null,null,null,null,null,null,null,null,null,null,null,"Latrobe","Latrobe (C)",{"$f":"LEN(TB_LGA[[#This Row],[ACFELGA]])","v":7},null,null,null,null,null,null,null,null,null,null,null,"nDLEOCourse","nDLEOSCH","nDLEOStud","nDLEOTSCH","nDLEOTfund","nDLEOPmt1","nDLEOPmt2","nDLEOPmt3","nDLEOPmt4"]
["Not applicable",null,null,null,null,null,null,null,null,null,null,null,null,null,"Loddon","Loddon (S)",{"$f":"LEN(TB_LGA[[#This Row],[ACFELGA]])","v":6},null,null,null,null,null,null,null,null,null,null,null,"nDSE1Course","nDSE1SCH","nDSE1Stud","nDSE1TSCH","nDSE1Tfund","nDSE1Pmt1","nDSE1Pmt2","nDSE1Pmt3","nDSE1Pmt4"]
[null,null,null,null,null,null,null,null,null,null,null,null,null,null,"Macedon Ranges","Macedon Ranges (S)",{"$f":"LEN(TB_LGA[[#This Row],[ACFELGA]])","v":14},null,null,null,null,null,null,null,null,null,null,null,"nDSEOCourse","nDSEOSCH","nDSEOStud","nDSEOTSCH","nDSEOTfund","nDSEOPmt1","nDSEOPmt2","nDSEOPmt3","nDSEOPmt4"]
[null,null,null,null,null,null,null,null,null,null,null,null,null,null,"Manningham","Manningham (C)",{"$f":"LEN(TB_LGA[[#This Row],[ACFELGA]])","v":10},null,null,null,null,null,null,null,null,null,null,null,"nDLTCourse","nDLTSCH","nDLTStud","nDLTTSCH","nDLTTfund","nDLTPmt1","nDLTPmt2","nDLTPmt3","nDLTPmt4"]
[null,null,null,null,null,null,null,null,null,null,null,null,null,null,"Mansfield ","Mansfield (S)",{"$f":"LEN(TB_LGA[[#This Row],[ACFELGA]])","v":10},null,null,null,null,null,null,null,null,null,null,null,"nLANCourse","nLANSCH","nLANStud","nLANTSCH","nLANTfund","nLANPmt1","nLANPmt2","nLANPmt3","nLANPmt4"]
[null,null,null,null,null,null,null,null,null,null,null,null,null,null,"Maribyrnong","Maribyrnong (C)",{"$f":"LEN(TB_LGA[[#This Row],[ACFELGA]])","v":11},null,null,null,null,null,null,null,null,null,null,null,"nLLNCourse","nLLNSCH","nLLNStud","nLLNTSCH","nLLNTfund","nLLNPmt1","nLLNPmt2","nLLNPmt3","nLLNPmt4"]
["Partnerships",null,null,null,null,null,null,null,null,null,null,null,null,null,"Maroondah","Maroondah (C)",{"$f":"LEN(TB_LGA[[#This Row],[ACFELGA]])","v":9},null,null,null,null,null,null,null,null,null,null,null,"nEMPCourse","nEMPSCH","nEMPStud","nEMPTSCH","nEMPTfund","nEMPPmt1","nEMPPmt2","nEMPPmt3","nEMPPmt4"]
["*Please Select",null,null,null,null,null,null,null,null,null,null,null,null,null,"Melbourne","Melbourne (C)",{"$f":"LEN(TB_LGA[[#This Row],[ACFELGA]])","v":9},null,null,null,null,null,null,null,null,null,null,null,"nVOCCourse","nVOCSCH","nVOCStud","nVOCTSCH","nVOCTfund","nVOCPmt1","nVOCPmt2","nVOCPmt3","nVOCPmt4"]
["Option 01",null,null,null,null,null,null,null,null,null,null,null,null,null,"Melton","Melton (C)",{"$f":"LEN(TB_LGA[[#This Row],[ACFELGA]])","v":6},null,null,null,null,null,null,null,null,null,null,null,"nPATCourse","nPATSCH","nPATStud","nPATTSCH","nPATTfund","nPATPmt1","nPATPmt2","nPATPmt3","nPATPmt4"]
["Option 02",null,null,null,null,null,null,null,null,null,null,null,null,null,"Mildura","Mildura (RC)",{"$f":"LEN(TB_LGA[[#This Row],[ACFELGA]])","v":7},null,null,null,null,null,null,null,null,null,null,null,"nTotCourse","nTotSCH","nTotStud","nTotTSCH","nTotTfund","nTotPmt1","nTotPmt2","nTotPmt3","nTotPmt4"]
["Option 03",null,null,null,null,null,null,null,null,null,null,null,null,null,"Mitchell ","Mitchell (S)",{"$f":"LEN(TB_LGA[[#This Row],[ACFELGA]])","v":9}]
["Option 04",null,null,null,null,null,null,null,null,null,null,null,null,null,"Moira ","Moira (S)",{"$f":"LEN(TB_LGA[[#This Row],[ACFELGA]])","v":6}]
[null,null,null,null,null,null,null,null,null,null,null,null,null,null,"Monash","Monash (C)",{"$f":"LEN(TB_LGA[[#This Row],[ACFELGA]])","v":6}]
[null,null,null,null,null,null,null,null,null,null,null,null,null,null,"Moonee Valley","Moonee Valley (C)",{"$f":"LEN(TB_LGA[[#This Row],[ACFELGA]])","v":13}]
["DeliveryMode",null,null,null,null,null,null,null,null,null,null,null,null,null,"Moorabool","Moorabool (S)",{"$f":"LEN(TB_LGA[[#This Row],[ACFELGA]])","v":9}]
["Face to face",null,null,null,null,null,null,null,null,null,null,null,null,null,"Moreland","Moreland (C)",{"$f":"LEN(TB_LGA[[#This Row],[ACFELGA]])","v":8}]
["Online",null,null,null,null,null,null,null,null,null,null,null,null,null,"Mornington Peninsula","Mornington Peninsula (S)",{"$f":"LEN(TB_LGA[[#This Row],[ACFELGA]])","v":20}]
["Blended",null,null,null,null,null,null,null,null,null,null,null,null,null,"Mount Alexander ","Mount Alexander (S)",{"$f":"LEN(TB_LGA[[#This Row],[ACFELGA]])","v":16}]
[null,null,null,null,null,null,null,null,null,null,null,null,null,null,"Moyne ","Moyne (S)",{"$f":"LEN(TB_LGA[[#This Row],[ACFELGA]])","v":6}]
[null,null,null,null,null,null,null,null,null,null,null,null,null,null,"Murrindindi","Murrindindi (S)",{"$f":"LEN(TB_LGA[[#This Row],[ACFELGA]])","v":11}]
[null,null,null,null,null,null,null,null,null,null,null,null,null,null,"Nillumbik","Nillumbik (S)",{"$f":"LEN(TB_LGA[[#This Row],[ACFELGA]])","v":9}]
[null,null,null,null,null,null,null,null,null,null,null,null,null,null,"Northern Grampians","Northern Grampians (S)",{"$f":"LEN(TB_LGA[[#This Row],[ACFELGA]])","v":18}]
[null,null,null,null,null,null,null,null,null,null,null,null,null,null,"Port Phillip","Port Phillip (C)",{"$f":"LEN(TB_LGA[[#This Row],[ACFELGA]])","v":12}]
[null,null,null,null,null,null,null,null,null,null,null,null,null,null,"Pyrenees","Pyrenees (S)",{"$f":"LEN(TB_LGA[[#This Row],[ACFELGA]])","v":8}]
[null,null,null,null,null,null,null,null,null,null,null,null,null,null,"Queenscliffe","Queenscliffe (B)",{"$f":"LEN(TB_LGA[[#This Row],[ACFELGA]])","v":12}]
[null,null,null,null,null,null,null,null,null,null,null,null,null,null,"South Gippsland","South Gippsland (S)",{"$f":"LEN(TB_LGA[[#This Row],[ACFELGA]])","v":15}]
[null,null,null,null,null,null,null,null,null,null,null,null,null,null,"Southern Grampians","Southern Grampians (S)",{"$f":"LEN(TB_LGA[[#This Row],[ACFELGA]])","v":18}]
[null,null,null,null,null,null,null,null,null,null,null,null,null,null,"Stonnington","Stonnington (C)",{"$f":"LEN(TB_LGA[[#This Row],[ACFELGA]])","v":11}]
[null,null,null,null,null,null,null,null,null,null,null,null,null,null,"Strathbogie ","Strathbogie (S)",{"$f":"LEN(TB_LGA[[#This Row],[ACFELGA]])","v":12}]
[null,null,null,null,null,null,null,null,null,null,null,null,null,null,"Surf Coast","Surf Coast (S)",{"$f":"LEN(TB_LGA[[#This Row],[ACFELGA]])","v":10}]
[null,null,null,null,null,null,null,null,null,null,null,null,null,null,"Swan Hill","Swan Hill (RC)",{"$f":"LEN(TB_LGA[[#This Row],[ACFELGA]])","v":9}]
[null,null,null,null,null,null,null,null,null,null,null,null,null,null,"Towong","Towong (S)",{"$f":"LEN(TB_LGA[[#This Row],[ACFELGA]])","v":6}]
[null,null,null,null,null,null,null,null,null,null,null,null,null,null,"Wangaratta","Wangaratta (RC)",{"$f":"LEN(TB_LGA[[#This Row],[ACFELGA]])","v":10}]
[null,null,null,null,null,null,null,null,null,null,null,null,null,null,"Warrnambool","Warrnambool (C)",{"$f":"LEN(TB_LGA[[#This Row],[ACFELGA]])","v":11}]
[null,null,null,null,null,null,null,null,null,null,null,null,null,null,"Wellington","Wellington (S)",{"$f":"LEN(TB_LGA[[#This Row],[ACFELGA]])","v":10}]
[null,null,null,null,null,null,null,null,null,null,null,null,null,null,"West Wimmera","West Wimmera (S)",{"$f":"LEN(TB_LGA[[#This Row],[ACFELGA]])","v":12}]
[null,null,null,null,null,null,null,null,null,null,null,null,null,null,"Whitehorse","Whitehorse (C)",{"$f":"LEN(TB_LGA[[#This Row],[ACFELGA]])","v":10}]
[null,null,null,null,null,null,null,null,null,null,null,null,null,null,"Whittlesea","Whittlesea (C)",{"$f":"LEN(TB_LGA[[#This Row],[ACFELGA]])","v":10}]
[null,null,null,null,null,null,null,null,null,null,null,null,null,null,"Wodonga ","Wodonga (C)",{"$f":"LEN(TB_LGA[[#This Row],[ACFELGA]])","v":8}]
[null,null,null,null,null,null,null,null,null,null,null,null,null,null,"Wyndham ","Wyndham (C)",{"$f":"LEN(TB_LGA[[#This Row],[ACFELGA]])","v":8}]
[null,null,null,null,null,null,null,null,null,null,null,null,null,null,"Yarra","Yarra (C)",{"$f":"LEN(TB_LGA[[#This Row],[ACFELGA]])","v":5}]
[null,null,null,null,null,null,null,null,null,null,null,null,null,null,"Yarra Ranges","Yarra Ranges (S)",{"$f":"LEN(TB_LGA[[#This Row],[ACFELGA]])","v":12}]
[null,null,null,null,null,null,null,null,null,null,null,null,null,null,"Yarriambiack","Yarriambiack (S)",{"$f":"LEN(TB_LGA[[#This Row],[ACFELGA]])","v":12}]